{"text_format":"1","workbook":"xlsx","n_sheets":2,"sheets":["раздел 1","раздел 2"],"not_rendered":{"charts":0,"images":0,"macros":0,"external_links":2,"defined_names":8,"comments":0,"pivot_tables":0},"unopened":[],"bounds":{"document_bytes":16777216,"sheet_cells":100000,"rows_first":2000,"rows_last":500,"rows_between":2000,"halvings":0,"cell_chars":16384,"cell_head_chars":4096},"cells_cut":0,"cells_raw":0,"read":"whole","date_system":"1900"}

{"sheet":"раздел 1","index":0,"n_rows":151,"n_cols":98,"rows_kept":151,"cut":false,"hidden":false,"merged":[[116,0,116,40],[116,41,116,48],[116,49,116,61],[116,62,116,74],[116,90,116,102],[113,0,113,40],[113,41,113,48],[113,49,113,61],[113,62,113,74],[113,90,113,102],[115,0,115,40],[115,41,115,48],[115,49,115,61],[115,62,115,74],[115,90,115,102],[47,62,47,74],[47,90,47,102],[46,0,46,40],[46,41,46,48],[46,49,46,61],[46,62,46,74],[46,90,46,102],[112,0,112,40],[112,41,112,48],[112,49,112,61],[112,62,112,74],[112,90,112,102],[92,90,92,102],[92,0,92,40],[92,41,92,48],[92,49,92,61],[92,62,92,74],[94,90,94,102],[94,0,94,40],[94,41,94,48],[94,49,94,61],[94,62,94,74],[93,0,93,40],[93,41,93,48],[127,41,127,48],[127,49,127,61],[127,62,127,74],[128,90,128,102],[128,0,128,40],[128,41,128,48],[128,49,128,61],[128,62,128,74],[127,90,127,102],[127,0,127,40],[129,41,129,48],[129,49,129,61],[129,62,129,74],[144,0,144,102],[137,0,137,102],[139,0,139,102],[140,0,140,102],[141,0,141,102],[129,90,129,102],[129,0,129,40],[125,62,125,74],[126,90,126,102],[126,0,126,40],[126,41,126,48],[126,49,126,61],[126,62,126,74],[125,90,125,102],[125,0,125,40],[123,41,123,48],[123,49,123,61],[123,62,123,74],[124,90,124,102],[124,0,124,40],[124,41,124,48],[124,49,124,61],[124,62,124,74],[123,90,123,102],[123,0,123,40],[125,41,125,48],[125,49,125,61],[121,41,121,48],[121,49,121,61],[121,62,121,74],[122,90,122,102],[122,0,122,40],[122,41,122,48],[122,49,122,61],[122,62,122,74],[121,90,121,102],[121,0,121,40],[120,90,120,102],[120,0,120,40],[120,41,120,48],[120,49,120,61],[120,62,120,74],[118,76,119,76],[118,81,119,81],[118,90,119,102],[118,0,118,40],[118,86,119,86],[117,90,117,102],[117,0,117,40],[117,41,117,48],[117,49,117,61],[117,62,117,74],[118,41,119,48],[118,49,119,61],[118,62,119,74],[119,0,119,40],[93,49,93,61],[93,62,93,74],[93,90,93,102],[90,90,90,102],[90,0,90,40],[90,41,90,48],[90,49,90,61],[90,62,90,74],[91,90,91,102],[91,0,91,40],[91,41,91,48],[91,49,91,61],[91,62,91,74],[87,90,87,102],[87,0,87,40],[87,41,87,48],[87,49,87,61],[87,62,87,74],[88,90,88,102],[88,0,88,40],[88,41,88,48],[88,49,88,61],[88,62,88,74],[85,90,85,102],[85,0,85,40],[85,41,85,48],[85,49,85,61],[85,62,85,74],[86,90,86,102],[86,0,86,40],[86,41,86,48],[86,49,86,61],[86,62,86,74],[83,90,83,102],[83,0,83,40],[83,41,83,48],[83,49,83,61],[83,62,83,74],[84,90,84,102],[84,0,84,40],[84,41,84,48],[84,49,84,61],[84,62,84,74],[80,90,80,102],[80,0,80,40],[80,41,80,48],[80,49,80,61],[80,62,80,74],[82,90,82,102],[82,0,82,40],[82,41,82,48],[82,49,82,61],[82,62,82,74],[78,90,78,102],[78,0,78,40],[78,41,78,48],[78,49,78,61],[78,62,78,74],[79,90,79,102],[79,0,79,40],[79,41,79,48],[79,49,79,61],[79,62,79,74],[76,90,76,102],[76,0,76,40],[76,41,76,48],[76,49,76,61],[76,62,76,74],[77,90,77,102],[77,0,77,40],[77,41,77,48],[77,49,77,61],[77,62,77,74],[74,90,74,102],[74,0,74,40],[74,41,74,48],[74,49,74,61],[74,62,74,74],[75,90,75,102],[75,0,75,40],[75,41,75,48],[75,49,75,61],[75,62,75,74],[72,90,72,102],[72,0,72,40],[72,41,72,48],[72,49,72,61],[72,62,72,74],[73,90,73,102],[73,0,73,40],[73,41,73,48],[73,49,73,61],[73,62,73,74],[70,90,70,102],[70,0,70,40],[70,41,70,48],[70,49,70,61],[70,62,70,74],[71,90,71,102],[71,0,71,40],[71,41,71,48],[71,49,71,61],[71,62,71,74],[67,62,67,74],[68,90,68,102],[68,0,68,40],[68,41,68,48],[68,49,68,61],[68,62,68,74],[69,90,69,102],[69,0,69,40],[69,41,69,48],[69,49,69,61],[69,62,69,74],[62,90,62,102],[62,0,62,40],[62,41,62,48],[62,49,62,61],[62,62,62,74],[63,90,63,102],[63,0,63,40],[63,41,63,48],[63,49,63,61],[63,62,63,74],[56,62,56,74],[58,90,58,102],[59,62,59,74],[59,90,59,102],[58,62,58,74],[61,90,61,102],[61,0,61,40],[61,41,61,48],[61,49,61,61],[61,62,61,74],[58,0,58,40],[59,0,59,40],[58,41,58,48],[58,49,58,61],[59,41,59,48],[59,49,59,61],[60,0,60,40],[60,41,60,48],[60,49,60,61],[60,62,60,74],[60,90,60,102],[53,90,53,102],[53,0,53,40],[53,41,53,48],[53,49,53,61],[53,62,53,74],[56,90,56,102],[57,0,57,40],[57,41,57,48],[57,49,57,61],[57,62,57,74],[57,90,57,102],[56,0,56,40],[54,90,54,102],[54,0,54,40],[54,41,54,48],[54,49,54,61],[54,62,54,74],[55,90,55,102],[55,0,55,40],[55,41,55,48],[55,49,55,61],[55,62,55,74],[56,41,56,48],[56,49,56,61],[50,90,50,102],[50,0,50,40],[50,41,50,48],[50,49,50,61],[50,62,50,74],[51,76,52,76],[51,81,52,81],[51,90,52,102],[51,0,51,40],[51,86,52,86],[51,41,52,48],[51,49,52,61],[51,62,52,74],[52,0,52,40],[43,90,43,102],[43,0,43,40],[43,41,43,48],[43,49,43,61],[43,62,43,74],[49,90,49,102],[49,0,49,40],[49,41,49,48],[49,49,49,61],[49,62,49,74],[44,90,45,102],[44,41,45,48],[44,49,45,61],[44,62,45,74],[45,0,45,40],[44,0,44,40],[48,0,48,40],[48,41,48,48],[48,49,48,61],[48,62,48,74],[48,90,48,102],[47,0,47,40],[47,41,47,48],[47,49,47,61],[40,90,40,102],[40,0,40,40],[40,41,40,48],[40,49,40,61],[40,62,40,74],[41,76,42,76],[41,81,42,81],[41,90,42,102],[41,0,41,40],[41,86,42,86],[41,41,42,48],[41,49,42,61],[41,62,42,74],[42,0,42,40],[38,0,38,40],[38,41,39,48],[38,49,39,61],[36,0,36,40],[36,41,36,48],[36,49,36,61],[36,90,36,102],[37,0,37,40],[37,41,37,48],[37,49,37,61],[37,62,37,74],[37,90,37,102],[36,62,36,74],[38,86,39,86],[32,90,33,102],[34,90,34,102],[35,90,35,102],[35,62,35,74],[35,49,35,61],[38,76,39,76],[38,81,39,81],[35,0,35,40],[35,41,35,48],[34,0,34,40],[34,41,34,48],[34,49,34,61],[34,62,34,74],[38,62,39,74],[39,0,39,40],[32,76,33,76],[32,81,33,81],[32,0,32,40],[33,0,33,40],[32,41,33,48],[32,49,33,61],[32,62,33,74],[32,86,33,86],[38,90,39,102],[31,90,31,102],[31,0,31,40],[31,41,31,48],[31,49,31,61],[31,62,31,74],[30,90,30,102],[30,0,30,40],[28,90,28,102],[28,0,28,40],[30,41,30,48],[30,49,30,61],[30,62,30,74],[16,27,16,87],[16,88,16,89],[16,90,16,102],[17,88,17,89],[17,90,17,102],[18,90,18,102],[19,27,19,87],[19,90,19,102],[20,90,20,102],[21,0,21,102],[29,90,29,102],[29,0,29,40],[29,41,29,48],[29,49,29,61],[29,62,29,74],[28,41,28,48],[28,49,28,61],[28,62,28,74],[12,59,12,67],[12,90,13,102],[14,24,14,27],[14,28,14,30],[14,31,14,32],[14,34,14,48],[14,49,14,51],[14,52,14,54],[14,90,14,102],[15,88,15,89],[15,90,15,102],[7,89,7,102],[23,49,26,61],[23,62,26,74],[27,0,27,40],[27,41,27,48],[27,49,27,61],[27,62,27,74],[27,90,27,102],[23,75,23,102],[12,23,12,25],[12,26,12,47],[12,48,12,50],[12,51,12,55],[12,56,12,58],[23,0,26,40],[23,41,26,48],[25,75,25,79],[25,80,25,84],[25,85,25,89],[24,90,26,102],[11,62,11,64],[12,16,12,22],[1,89,1,102],[2,86,2,102],[3,86,3,102],[4,86,4,102],[5,86,5,102],[6,86,6,102],[8,86,8,87],[8,89,8,102],[9,91,9,93],[9,94,9,96],[64,0,64,40],[64,41,64,48],[64,49,64,61],[64,62,64,74],[64,90,64,102],[81,0,81,40],[81,41,81,48],[81,49,81,61],[81,62,81,74],[81,90,81,102],[65,90,65,102],[65,0,65,40],[65,41,65,48],[65,49,65,61],[65,62,65,74],[66,90,66,102],[66,0,66,40],[66,41,66,48],[66,49,66,61],[66,62,66,74],[67,90,67,102],[67,0,67,40],[67,41,67,48],[67,49,67,61],[96,0,96,40],[96,41,96,48],[96,49,96,61],[96,62,96,74],[96,90,96,102],[95,90,95,102],[95,0,95,40],[95,41,95,48],[95,49,95,61],[95,62,95,74],[97,0,97,40],[97,41,97,48],[97,49,97,61],[97,62,97,74],[97,90,97,102],[98,0,98,40],[98,41,98,48],[98,49,98,61],[98,62,98,74],[98,90,98,102],[99,0,99,40],[99,41,99,48],[99,49,99,61],[99,62,99,74],[99,90,99,102],[100,0,100,40],[100,41,100,48],[100,49,100,61],[100,62,100,74],[100,90,100,102],[101,0,101,40],[101,41,101,48],[101,49,101,61],[101,62,101,74],[101,90,101,102],[102,0,102,40],[102,41,102,48],[102,49,102,61],[102,62,102,74],[102,90,102,102],[105,62,105,74],[105,90,105,102],[106,0,106,40],[106,41,106,48],[106,49,106,61],[106,62,106,74],[106,90,106,102],[104,0,104,40],[104,41,104,48],[104,49,104,61],[104,62,104,74],[104,90,104,102],[108,0,108,40],[108,41,108,48],[108,49,108,61],[108,62,108,74],[108,90,108,102],[111,0,111,40],[111,41,111,48],[111,49,111,61],[111,62,111,74],[111,90,111,102],[110,0,110,40],[110,41,110,48],[110,49,110,61],[110,62,110,74],[110,90,110,102],[109,0,109,40],[109,41,109,48],[109,49,109,61],[109,62,109,74],[89,0,89,40],[89,41,89,48],[89,49,89,61],[89,62,89,74],[89,90,89,102],[114,0,114,40],[114,41,114,48],[114,49,114,61],[114,62,114,74],[114,90,114,102],[109,90,109,102],[107,0,107,40],[107,41,107,48],[107,49,107,61],[107,62,107,74],[107,90,107,102],[103,0,103,40],[103,41,103,48],[103,49,103,61],[103,62,103,74],[103,90,103,102],[105,0,105,40],[105,41,105,48],[105,49,105,61]]}
[]
[null,null,null,null,null,null,null,null,null,null,null,null,null,null,null,null,null,null,null,null,null,null,null,null,null,null,null,null,null,null,null,null,null,null,null,null,null,null,null,null,null,null,null,null,null,null,null,null,null,null,null,null,null,null,null,null,null,null,null,null,null,null,null,null,null,null,null,null,null,null,null,null,null,null,null,null,null,null,null,null,null,null,null,null,null,null,null,null,null,"Приложение № 1 к Порядку"]
[null,null,null,null,null,null,null,null,null,null,null,null,null,null,null,null,null,null,null,null,null,null,null,null,null,null,null,null,null,null,null,null,null,null,null,null,null,null,null,null,null,null,null,null,null,null,null,null,null,null,null,null,null,null,null,null,null,null,null,null,null,null,null,null,null,null,null,null,null,null,null,null,null,null,null,null,null,null,null,null,null,null,null,null,null,null,"Утверждаю"]
[null,null,null,null,null,null,null,null,null,null,null,null,null,null,null,null,null,null,null,null,null,null,null,null,null,null,null,null,null,null,null,null,null,null,null,null,null,null,null,null,null,null,null,null,null,null,null,null,null,null,null,null,null,null,null,null,null,null,null,null,null,null,null,null,null,null,null,null,null,null,null,null,null,null,null,null,null,null,null,null,null,null,null,null,null,null,"Заместитель директора"]
[null,null,null,null,null,null,null,null,null,null,null,null,null,null,null,null,null,null,null,null,null,null,null,null,null,null,null,null,null,null,null,null,null,null,null,null,null,null,null,null,null,null,null,null,null,null,null,null,null,null,null,null,null,null,null,null,null,null,null,null,null,null,null,null,null,null,null,null,null,null,null,null,null,null,null,null,null,null,null,null,null,null,null,null,null,null,"(наименование должности уполномоченного лица)"]
[null,null,null,null,null,null,null,null,null,null,null,null,null,null,null,null,null,null,null,null,null,null,null,null,null,null,null,null,null,null,null,null,null,null,null,null,null,null,null,null,null,null,null,null,null,null,null,null,null,null,null,null,null,null,null,null,null,null,null,null,null,null,null,null,null,null,null,null,null,null,null,null,null,null,null,null,null,null,null,null,null,null,null,null,null,null,"МАУ \"МДЦ \"Восход\"\""]
[null,null,null,null,null,null,null,null,null,null,null,null,null,null,null,null,null,null,null,null,null,null,null,null,null,null,null,null,null,null,null,null,null,null,null,null,null,null,null,null,null,null,null,null,null,null,null,null,null,null,null,null,null,null,null,null,null,null,null,null,null,null,null,null,null,null,null,null,null,null,null,null,null,null,null,null,null,null,null,null,null,null,null,null,null,null,"(наименование Учредителя (Учреждения)"]
[null,null,null,null,null,null,null,null,null,null,null,null,null,null,null,null,null,null,null,null,null,null,null,null,null,null,null,null,null,null,null,null,null,null,null,null,null,null,null,null,null,null,null,null,null,null,null,null,null,null,null,null,null,null,null,null,null,null,null,null,null,null,null,null,null,null,null,null,null,null,null,null,null,null,null,null,null,null,null,null,null,null,null,null,null,null,null,null,null,"Гырля М.С."]
[null,null,null,null,null,null,null,null,null,null,null,null,null,null,null,null,null,null,null,null,null,null,null,null,null,null,null,null,null,null,null,null,null,null,null,null,null,null,null,null,null,null,null,null,null,null,null,null,null,null,null,null,null,null,null,null,null,null,null,null,null,null,null,null,null,null,null,null,null,null,null,null,null,null,null,null,null,null,null,null,null,null,null,null,null,null,"(подпись)",null,null,"(расшифровка подписи)"]
[null,null,null,null,null,null,null,null,null,null,null,null,null,null,null,null,null,null,null,null,null,null,null,null,null,null,null,null,null,null,null,null,null,null,null,null,null,null,null,null,null,null,null,null,null,null,null,null,null,null,null,null,null,null,null,null,null,null,null,null,null,null,null,null,null,null,null,null,null,null,null,null,null,null,null,null,null,null,null,null,null,null,null,null,null,null,null,null,null,null,null,20,null,null,null,null,null," г."]
[]
[null,null,null,null,null,null,null,null,null,null,null,null,null,null,null,null,null,null,null,null,null,null,null,null,null,null,null,null,null,null,null,null,null,null,null,null,null,null,null,null,null,null,null,null,null,null,null,null,null,null,null,null,null,null,null,null,null,null,null,null,null,"План финансово-хозяйственной деятельности на 20","20",null,null," г."]
[null,null,null,null,null,null,null,null,null,null,null,null,null,null,null,null,"(на 20",null,null,null,null,null,null,"20",null,null,"г. и плановый период 20",null,null,null,null,null,null,null,null,null,null,null,null,null,null,null,null,null,null,null,null,null,"21",null,null,"и 20",null,null,null,null,"22",null,null," годов 1)",null,null,null,null,null,null,null,null,null,null,null,null,null,null,null,null,null,null,null,null,null,null,null,null,null,null,null,null,null,null,"Коды"]
[]
[null,null,null,null,null,null,null,null,null,null,null,null,null,null,null,null,null,null,null,null,null,null,null,null,"от \"",null,null,null,null,null,null,"\"",null,null,null,null,null,null,null,null,null,null,null,null,null,null,null,null,null,20,null,null,null,null,null," г.2",null,null,null,null,null,null,null,null,null,null,null,null,null,null,null,null,null,null,null,null,null,null,null,null,null,null,null,null,null,null,null,null,null,"Дата"]
["Орган, осуществляющий",null,null,null,null,null,null,null,null,null,null,null,null,null,null,null,null,null,null,null,null,null,null,null,null,null,null,null,null,null,null,null,null,null,null,null,null,null,null,null,null,null,null,null,null,null,null,null,null,null,null,null,null,null,null,null,null,null,null,null,null,null,null,null,null,null,null,null,null,null,null,null,null,null,null,null,null,null,null,null,null,null,null,null,null,null,null,null,"по Сводному реестру"]
["функции и полномочия учредителя",null,null,null,null,null,null,null,null,null,null,null,null,null,null,null,null,null,null,null,null,null,null,null,null,null,null,"Администрация муниципального образования Киришский муниципальный район Ленинградской области",null,null,null,null,null,null,null,null,null,null,null,null,null,null,null,null,null,null,null,null,null,null,null,null,null,null,null,null,null,null,null,null,null,null,null,null,null,null,null,null,null,null,null,null,null,null,null,null,null,null,null,null,null,null,null,null,null,null,null,null,"глава по БК"]
[null,null,null,null,null,null,null,null,null,null,null,null,null,null,null,null,null,null,null,null,null,null,null,null,null,null,null,null,null,null,null,null,null,null,null,null,null,null,null,null,null,null,null,null,null,null,null,null,null,null,null,null,null,null,null,null,null,null,null,null,null,null,null,null,null,null,null,null,null,null,null,null,null,null,null,null,null,null,null,null,null,null,null,null,null,null,null,null,"по Сводному реестру"]
[null,null,null,null,null,null,null,null,null,null,null,null,null,null,null,null,null,null,null,null,null,null,null,null,null,null,null,null,null,null,null,null,null,null,null,null,null,null,null,null,null,null,null,null,null,null,null,null,null,null,null,null,null,null,null,null,null,null,null,null,null,null,null,null,null,null,null,null,null,null,null,null,null,null,null,null,null,null,null,null,null,null,null,null,null,null,null,null,null,"ИНН","4708020562"]
["Учреждение",null,null,null,null,null,null,null,null,null,null,null,null,null,null,null,null,null,null,null,null,null,null,null,null,null,null,"Муниципальное автономное учреждение «Молодёжно-досуговый центр «Восход»  муниципального образования «Киришское городское поселение Киришского муниципального района Ленинградской области»\n(МАУ « МДЦ «ВОСХОД»)",null,null,null,null,null,null,null,null,null,null,null,null,null,null,null,null,null,null,null,null,null,null,null,null,null,null,null,null,null,null,null,null,null,null,null,null,null,null,null,null,null,null,null,null,null,null,null,null,null,null,null,null,null,null,null,null,null,null,null,null,null,"КПП","472701001"]
["Единица измерения: руб.",null,null,null,null,null,null,null,null,null,null,null,null,null,null,null,null,null,null,null,null,null,null,null,null,null,null,null,null,null,null,null,null,null,null,null,null,null,null,null,null,null,null,null,null,null,null,null,null,null,null,null,null,null,null,null,null,null,null,null,null,null,null,null,null,null,null,null,null,null,null,null,null,null,null,null,null,null,null,null,null,null,null,null,null,null,null,null,null,null,"383"]
["Раздел 1. Поступления и выплаты"]
[]
["Наименование показателя",null,null,null,null,null,null,null,null,null,null,null,null,null,null,null,null,null,null,null,null,null,null,null,null,null,null,null,null,null,null,null,null,null,null,null,null,null,null,null,null,"Код строки",null,null,null,null,null,null,null,"Код по бюджетной классификации Российской Федерации 3",null,null,null,null,null,null,null,null,null,null,null,null,"Аналитический код 4",null,null,null,null,null,null,null,null,null,null,null,null,"Сумма"]
[null,null,null,null,null,null,null,null,null,null,null,null,null,null,null,null,null,null,null,null,null,null,null,null,null,null,null,null,null,null,null,null,null,null,null,null,null,null,null,null,null,null,null,null,null,null,null,null,null,null,null,null,null,null,null,null,null,null,null,null,null,null,null,null,null,null,null,null,null,null,null,null,null,null,null,null,"на 20","20г.",null,null,null,"на 20","21г.",null,null,null,"на 20","22г.",null,null,"за пределами планового периода"]
[null,null,null,null,null,null,null,null,null,null,null,null,null,null,null,null,null,null,null,null,null,null,null,null,null,null,null,null,null,null,null,null,null,null,null,null,null,null,null,null,null,null,null,null,null,null,null,null,null,null,null,null,null,null,null,null,null,null,null,null,null,null,null,null,null,null,null,null,null,null,null,null,null,null,null,"текущий финансовый год",null,null,null,null,"первый год планового периода",null,null,null,null,"второй год планового периода"]
[null,null,null,null,null,null,null,null,null,null,null,null,null,null,null,null,null,null,null,null,null,null,null,null,null,null,null,null,null,null,null,null,null,null,null,null,null,null,null,null,null,null,null,null,null,null,null,null,null,null,null,null,null,null,null,null,null,null,null,null,null,null,null,null,null,null,null,null,null,null,null,null,null,null,null,"ВСЕГО","субсидии на финансовое обеспечение выполнения муниципального задания","целевые субсидии","субсидии на осуществление капитальных вложений","поступления от оказания услуг (выполнения работ) на платной основе и иной приносящей доход деятельности","ВСЕГО","субсидии на финансовое обеспечение выполнения муниципального задания","целевые субсидии","субсидии на осуществление капитальных вложений","поступления от оказания услуг (выполнения работ) на платной основе и иной приносящей доход деятельности","ВСЕГО","субсидии на финансовое обеспечение выполнения муниципального задания","целевые субсидии","субсидии на осуществление капитальных вложений","поступления от оказания услуг (выполнения работ) на платной основе и иной приносящей доход деятельности"]
["1",null,null,null,null,null,null,null,null,null,null,null,null,null,null,null,null,null,null,null,null,null,null,null,null,null,null,null,null,null,null,null,null,null,null,null,null,null,null,null,null,"2",null,null,null,null,null,null,null,"3",null,null,null,null,null,null,null,null,null,null,null,null,"4",null,null,null,null,null,null,null,null,null,null,null,null,"5","6","7","8","9","5","6","7","8","9","5","6","7","8","9","20"]
["Остаток средств на начало текущего финансового года 5",null,null,null,null,null,null,null,null,null,null,null,null,null,null,null,null,null,null,null,null,null,null,null,null,null,null,null,null,null,null,null,null,null,null,null,null,null,null,null,null,"0001",null,null,null,null,null,null,null,"х",null,null,null,null,null,null,null,null,null,null,null,null,"х",null,null,null,null,null,null,null,null,null,null,null,null,null,1309889.52,null,null,2892.77]
["Остаток средств на конец текущего финансового года 5",null,null,null,null,null,null,null,null,null,null,null,null,null,null,null,null,null,null,null,null,null,null,null,null,null,null,null,null,null,null,null,null,null,null,null,null,null,null,null,null,"0002",null,null,null,null,null,null,null,"х",null,null,null,null,null,null,null,null,null,null,null,null,"х"]
["Доходы, всего:",null,null,null,null,null,null,null,null,null,null,null,null,null,null,null,null,null,null,null,null,null,null,null,null,null,null,null,null,null,null,null,null,null,null,null,null,null,null,null,null,"1000",null,null,null,null,null,null,null,null,null,null,null,null,null,null,null,null,null,null,null,null,null,null,null,null,null,null,null,null,null,null,null,null,null,{"$f":"BX36+BX37+BZ31","v":27972298.640000001},{"$f":"BY36","v":20369101.890000001},{"$f":"BZ44","v":1546921.7999999998},null,{"$f":"CB37","v":6056274.9499999993},{"$f":"CC36+CC37+CE31","v":30328506.18},{"$f":"CD36","v":23102737.699999999},{"$f":"CE44","v":1395476.8399999999},null,{"$f":"CG37","v":5830291.6400000006},{"$f":"CH36+CH37+CJ31","v":30328506.18},{"$f":"CI36","v":23102737.699999999},{"$f":"CJ44","v":1395476.8399999999},null,{"$f":"CL37","v":5830291.6400000006}]
["в том числе:\nдоходы от собственности, всего",null,null,null,null,null,null,null,null,null,null,null,null,null,null,null,null,null,null,null,null,null,null,null,null,null,null,null,null,null,null,null,null,null,null,null,null,null,null,null,null,"1100",null,null,null,null,null,null,null,"120"]
["в том числе:",null,null,null,null,null,null,null,null,null,null,null,null,null,null,null,null,null,null,null,null,null,null,null,null,null,null,null,null,null,null,null,null,null,null,null,null,null,null,null,null,"1110"]
[]
["доходы от оказания услуг, работ, компенсации затрат учреждений, всего",null,null,null,null,null,null,null,null,null,null,null,null,null,null,null,null,null,null,null,null,null,null,null,null,null,null,null,null,null,null,null,null,null,null,null,null,null,null,null,null,"1200",null,null,null,null,null,null,null,"130",null,null,null,null,null,null,null,null,null,null,null,null,null,null,null,null,null,null,null,null,null,null,null,null,null,{"$f":"BX36+BX37+BX44","v":27972298.640000001},{"$f":"BY36+BY37+BY44","v":20369101.890000001},{"$f":"BZ44","v":1546921.7999999998},null,{"$f":"CB36+CB37+CB44","v":6056274.9499999993},{"$f":"CC36+CC37+CC44","v":30328506.18},23102737.699999999,{"$f":"CE44","v":1395476.8399999999},null,{"$f":"CG36+CG37+CG44","v":5830291.6400000006},30328506.18,23102737.699999999,{"$f":"CJ44","v":1395476.8399999999},null,{"$f":"CL36+CL37+CL44","v":5830291.6400000006}]
["в том числе:\nсубсидии на финансовое обеспечение выполнения муниципального задания за счет средств бюджета публично-правового образования, создавшего учреждение",null,null,null,null,null,null,null,null,null,null,null,null,null,null,null,null,null,null,null,null,null,null,null,null,null,null,null,null,null,null,null,null,null,null,null,null,null,null,null,null,"1210",null,null,null,null,null,null,null,"131",null,null,null,null,null,null,null,null,null,null,null,null,null,null,null,null,null,null,null,null,null,null,null,null,null,{"$f":"BY36","v":20369101.890000001},{"$f":"23422737.7-3053635.81","v":20369101.890000001},null,null,null,{"$f":"CD36","v":23102737.699999999},{"$f":"23422737.7-320000","v":23102737.699999999},null,null,null,{"$f":"CI36","v":23102737.699999999},{"$f":"23422737.7-320000","v":23102737.699999999}]
["поступления от оказания услуг (выполнения работ) на платной основе и иной приносящей доход деятельности всего",null,null,null,null,null,null,null,null,null,null,null,null,null,null,null,null,null,null,null,null,null,null,null,null,null,null,null,null,null,null,null,null,null,null,null,null,null,null,null,null,"1220",null,null,null,null,null,null,null,"131",null,null,null,null,null,null,null,null,null,null,null,null,null,null,null,null,null,null,null,null,null,null,null,null,null,{"$f":"CB37","v":6056274.9499999993},null,null,null,{"$f":"5830291.64+225983.31","v":6056274.9499999993},{"$f":"CG37","v":5830291.6400000006},null,null,null,{"$f":"CG58","v":5830291.6400000006},{"$f":"CL37","v":5830291.6400000006},null,null,null,{"$f":"CL58","v":5830291.6400000006}]
["доходы от штрафов, пеней, иных сумм принудительного изъятия, всего",null,null,null,null,null,null,null,null,null,null,null,null,null,null,null,null,null,null,null,null,null,null,null,null,null,null,null,null,null,null,null,null,null,null,null,null,null,null,null,null,"1300",null,null,null,null,null,null,null,"140"]
["в том числе:",null,null,null,null,null,null,null,null,null,null,null,null,null,null,null,null,null,null,null,null,null,null,null,null,null,null,null,null,null,null,null,null,null,null,null,null,null,null,null,null,"1310",null,null,null,null,null,null,null,"140"]
[]
["безвозмездные денежные поступления, всего",null,null,null,null,null,null,null,null,null,null,null,null,null,null,null,null,null,null,null,null,null,null,null,null,null,null,null,null,null,null,null,null,null,null,null,null,null,null,null,null,"1400",null,null,null,null,null,null,null,"150"]
["в том числе:"]
[]
["прочие доходы, всего",null,null,null,null,null,null,null,null,null,null,null,null,null,null,null,null,null,null,null,null,null,null,null,null,null,null,null,null,null,null,null,null,null,null,null,null,null,null,null,null,"1500",null,null,null,null,null,null,null,"152",null,null,null,null,null,null,null,null,null,null,null,null,null,null,null,null,null,null,null,null,null,null,null,null,null,{"$f":"BX46","v":1546921.7999999998},null,{"$f":"BZ46","v":1546921.7999999998},null,null,{"$f":"CC46","v":1395476.8399999999},null,{"$f":"CE46","v":1395476.8399999999},null,null,{"$f":"CH46","v":1395476.8399999999},null,{"$f":"CJ46","v":1395476.8399999999}]
["в том числе:"]
["целевые субсидии",null,null,null,null,null,null,null,null,null,null,null,null,null,null,null,null,null,null,null,null,null,null,null,null,null,null,null,null,null,null,null,null,null,null,null,null,null,null,null,null,null,null,null,null,null,null,null,null,null,null,null,null,null,null,null,null,null,null,null,null,null,null,null,null,null,null,null,null,null,null,null,null,null,null,{"$f":"SUM(BX47:BX50)","v":1546921.7999999998},null,{"$f":"SUM(BZ47:BZ50)","v":1546921.7999999998},null,null,{"$f":"SUM(CC47:CC50)","v":1395476.8399999999},null,{"$f":"SUM(CE47:CE50)","v":1395476.8399999999},null,null,{"$f":"SUM(CH47:CH50)","v":1395476.8399999999},null,{"$f":"SUM(CJ47:CJ50)","v":1395476.8399999999}]
["Работы с детьми и молодежью в подведомственных учреждениях (ремонт имущества и благоустройство территории) ",null,null,null,null,null,null,null,null,null,null,null,null,null,null,null,null,null,null,null,null,null,null,null,null,null,null,null,null,null,null,null,null,null,null,null,null,null,null,null,null,"1520",null,null,null,null,null,null,null,"152",null,null,null,null,null,null,null,null,null,null,null,null,null,null,null,null,null,null,null,null,null,null,null,null,null,{"$f":"BZ47","v":630232.4},null,630232.4,null,null,{"$f":"CE47","v":0},null,null,null,null,{"$f":"CJ47","v":0}]
["Работа с детьми и молодежью в подведомственных учреждениях (приобретение основных средств и материальных запасов)",null,null,null,null,null,null,null,null,null,null,null,null,null,null,null,null,null,null,null,null,null,null,null,null,null,null,null,null,null,null,null,null,null,null,null,null,null,null,null,null,"1521",null,null,null,null,null,null,null,"152",null,null,null,null,null,null,null,null,null,null,null,null,null,null,null,null,null,null,null,null,null,null,null,null,null,{"$f":"BZ48","v":684704},null,{"$f":"976350.24-291646.24","v":684704},null,null,{"$f":"CE48","v":976350.24},null,976350.24,null,null,{"$f":"CJ48","v":976350.24},null,976350.24]
["Поддержка деятельности молодежных общественных организаций, объединений, инициатив и развитие добровольческого (волонтерского) движения, содействию трудовой адаптации и занятости молодежи (Губернаторский молодежный отряд)",null,null,null,null,null,null,null,null,null,null,null,null,null,null,null,null,null,null,null,null,null,null,null,null,null,null,null,null,null,null,null,null,null,null,null,null,null,null,null,null,"1522",null,null,null,null,null,null,null,"152",null,null,null,null,null,null,null,null,null,null,null,null,null,null,null,null,null,null,null,null,null,null,null,null,null,{"$f":"BZ49","v":171885.39999999997},null,{"$f":"359026.6-187141.2","v":171885.39999999997},null,null,{"$f":"CE49","v":359026.6},null,359026.6,null,null,{"$f":"CJ49","v":359026.6},null,359026.6]
["Реализация комплекса мер по сохранению исторической памяти",null,null,null,null,null,null,null,null,null,null,null,null,null,null,null,null,null,null,null,null,null,null,null,null,null,null,null,null,null,null,null,null,null,null,null,null,null,null,null,null,"1523",null,null,null,null,null,null,null,"152",null,null,null,null,null,null,null,null,null,null,null,null,null,null,null,null,null,null,null,null,null,null,null,null,null,{"$f":"BZ50","v":60100},null,60100,null,null,{"$f":"CE50","v":60100},null,60100,null,null,{"$f":"CJ50","v":60100},null,60100]
["доходы от операций с активами, всего",null,null,null,null,null,null,null,null,null,null,null,null,null,null,null,null,null,null,null,null,null,null,null,null,null,null,null,null,null,null,null,null,null,null,null,null,null,null,null,null,"1900",null,null,null,null,null,null,null,"510",null,null,null,null,null,null,null,null,null,null,null,null,null,null,null,null,null,null,null,null,null,null,null,null,null,{"$f":"BY51","v":40506.78},40506.78]
["в том числе:"]
[]
[]
["прочие поступления, всего 6",null,null,null,null,null,null,null,null,null,null,null,null,null,null,null,null,null,null,null,null,null,null,null,null,null,null,null,null,null,null,null,null,null,null,null,null,null,null,null,null,"1980",null,null,null,null,null,null,null,"х",null,null,null,null,null,null,null,null,null,null,null,null,null,null,null,null,null,null,null,null,null,null,null,null,null,{"$f":"BX56","v":40506.78},{"$f":"BY56","v":40506.78}]
["из них:\nувеличение остатков денежных средств за счет возврата дебиторской задолженности прошлых лет",null,null,null,null,null,null,null,null,null,null,null,null,null,null,null,null,null,null,null,null,null,null,null,null,null,null,null,null,null,null,null,null,null,null,null,null,null,null,null,null,"1981",null,null,null,null,null,null,null,"510",null,null,null,null,null,null,null,null,null,null,null,null,null,null,null,null,null,null,null,null,null,null,null,null,null,40506.78,40506.78,null,null,null,null,null,null,null,null,null,null,null,null,null,"х"]
[]
["Расходы, всего",null,null,null,null,null,null,null,null,null,null,null,null,null,null,null,null,null,null,null,null,null,null,null,null,null,null,null,null,null,null,null,null,null,null,null,null,null,null,null,null,"2000",null,null,null,null,null,null,null,"х",null,null,null,null,null,null,null,null,null,null,null,null,null,null,null,null,null,null,null,null,null,null,null,null,null,{"$f":"BY58+BZ58+CA58+CB58","v":29325587.705160506},{"$f":"BY59+BY80+BY92","v":21719498.187394001},{"$f":"BZ59+BZ80+BZ92","v":1546921.7999999998},null,{"$f":"CB59+CB80+CB92+CB89","v":6059167.7177665047},{"$f":"CD58+CE58+CF58+CG58","v":30328506.180000003},{"$f":"CD59+CD80+CD92","v":23102737.700000003},{"$f":"CE59+CE80+CE92","v":1395476.84},null,{"$f":"CG59+CG80+CG92","v":5830291.6400000006},{"$f":"CI58+CJ58+CK58+CL58","v":30328506.180000003},{"$f":"CI59+CI80+CI92","v":23102737.700000003},{"$f":"CJ59+CJ80+CJ92","v":1395476.84},null,{"$f":"CL59+CL80+CL92","v":5830291.6400000006}]
["в том числе:\nна выплаты персоналу, всего",null,null,null,null,null,null,null,null,null,null,null,null,null,null,null,null,null,null,null,null,null,null,null,null,null,null,null,null,null,null,null,null,null,null,null,null,null,null,null,null,"2100",null,null,null,null,null,null,null,"х",null,null,null,null,null,null,null,null,null,null,null,null,null,null,null,null,null,null,null,null,null,null,null,null,null,{"$f":"BY59+BZ59+CA59+CB59","v":19126247.186186507},{"$f":"BY60+BY61+BY64+BY65+BY76","v":15493153.108420001},{"$f":"BZ60+BZ61+BZ64+BZ65+BZ76","v":163885.40000000002},null,{"$f":"CB60+CB61+CB64+CB65+CB73-0.01","v":3469208.6777665042},{"$f":"CC60+CC61+CC64+CC65+CC76","v":21779005.340000004},{"$f":"CD60+CD61+CD64+CD65+CD76","v":18111046.130000003},{"$f":"CE60+CE61+CE64+CE65+CE76","v":343026.60000000003},null,{"$f":"CG60+CG61+CG64+CG65+CG73","v":3324932.6100000003},{"$f":"CH60+CH61+CH64+CH65+CH76","v":21779005.340000004},{"$f":"CI60+CI61+CI64+CI65+CI76","v":18111046.130000003},{"$f":"CJ60+CJ61+CJ64+CJ65+CJ76","v":343026.60000000003},null,{"$f":"CL60+CL61+CL64+CL65+CL73","v":3324932.6100000003},"х"]
["в том числе:\nоплата труда",null,null,null,null,null,null,null,null,null,null,null,null,null,null,null,null,null,null,null,null,null,null,null,null,null,null,null,null,null,null,null,null,null,null,null,null,null,null,null,null,"2110",null,null,null,null,null,null,null,"111",null,null,null,null,null,null,null,null,null,null,null,null,"0707 211",null,null,null,null,null,null,null,null,null,null,null,null,{"$f":"BY60+CB60+BZ60","v":13277107.0439252},{"$f":"[1]Лист1!$J$52","v":10484151.140592001},{"$f":"263461.4-137589.2","v":125872.20000000001},null,{"$f":"[1]Лист1!$N$52","v":2667083.7033332},{"$f":"CD60+CG60+CE60","v":14911097.52},{"$f":"12094385.27+263461.4-263461.4","v":12094385.27},263461.40000000002,null,{"$f":"2553250.85","v":2553250.85},{"$f":"CI60+CL60+CJ60","v":14911097.52},{"$f":"12094385.27+263461.4-263461.4","v":12094385.27},263461.40000000002,null,{"$f":"2553250.85","v":2553250.85},"х"]
["\nоплата труда",null,null,null,null,null,null,null,null,null,null,null,null,null,null,null,null,null,null,null,null,null,null,null,null,null,null,null,null,null,null,null,null,null,null,null,null,null,null,null,null,"2111",null,null,null,null,null,null,null,"111",null,null,null,null,null,null,null,null,null,null,null,null,"0801 211",null,null,null,null,null,null,null,null,null,null,null,null,{"$f":"BY61+CB61","v":1616105.619408},{"$f":"[2]Лист1!$J$111","v":1616105.619408},null,null,null,{"$f":"CD61+CG61","v":1815788.41},{"$f":"1815788.41","v":1815788.41},null,null,null,{"$f":"CI61+CL61","v":1815788.41},{"$f":"1815788.41","v":1815788.41},null,null,null,"х"]
["прочие выплаты персоналу, в том числе компенсационного характера",null,null,null,null,null,null,null,null,null,null,null,null,null,null,null,null,null,null,null,null,null,null,null,null,null,null,null,null,null,null,null,null,null,null,null,null,null,null,null,null,"2120",null,null,null,null,null,null,null,"112",null,null,null,null,null,null,null,null,null,null,null,null,null,null,null,null,null,null,null,null,null,null,null,null,null,null,null,null,null,null,null,null,null,null,null,null,null,null,null,null,"х"]
["иные выплаты, за исключением фонда оплаты труда учреждения, для выполнения отдельных полномочий",null,null,null,null,null,null,null,null,null,null,null,null,null,null,null,null,null,null,null,null,null,null,null,null,null,null,null,null,null,null,null,null,null,null,null,null,null,null,null,null,"2130",null,null,null,null,null,null,null,"113",null,null,null,null,null,null,null,null,null,null,null,null,null,null,null,null,null,null,null,null,null,null,null,null,null,null,null,null,null,null,null,null,null,null,null,null,null,null,null,null,"х"]
["взносы по обязательному социальному страхованию на выплаты по оплате труда работников и иные выплаты работникам учреждений, всего",null,null,null,null,null,null,null,null,null,null,null,null,null,null,null,null,null,null,null,null,null,null,null,null,null,null,null,null,null,null,null,null,null,null,null,null,null,null,null,null,"2140",null,null,null,null,null,null,null,"119",null,null,null,null,null,null,null,null,null,null,null,null,"0707 213",null,null,null,null,null,null,null,null,null,null,null,null,{"$f":"BY64+CB64+BZ64","v":3736500.6831333046},{"$f":"[1]Лист2!$CA$86","v":2902362.4987000003},{"$f":"79565.2-41552","v":38013.199999999997},null,{"$f":"[1]Лист2!$CE$86","v":796124.98443330405},{"$f":"CD64+CG64+CE64","v":4503151.3100000005},{"$f":"3652504.35","v":3652504.35},79565.2,null,{"$f":"771081.76","v":771081.76},{"$f":"CI64+CL64+CJ64","v":4503151.3100000005},{"$f":"3652504.35","v":3652504.35},79565.2,null,{"$f":"771081.76","v":771081.76},"х"]
["взносы по обязательному социальному страхованию на выплаты по оплате труда работников и иные выплаты работникам учреждений, всего",null,null,null,null,null,null,null,null,null,null,null,null,null,null,null,null,null,null,null,null,null,null,null,null,null,null,null,null,null,null,null,null,null,null,null,null,null,null,null,null,"2141",null,null,null,null,null,null,null,"119",null,null,null,null,null,null,null,null,null,null,null,null,"0801 213",null,null,null,null,null,null,null,null,null,null,null,null,{"$f":"BY65+CB65","v":450027.06972000003},{"$f":"[2]Лист2!$CA$94","v":450027.06972000003},null,null,null,{"$f":"CD65+CG65","v":548368.1},{"$f":"548368.1","v":548368.1},null,null,null,{"$f":"CI65+CL65","v":548368.1},{"$f":"548368.1","v":548368.1},null,null,null,"х"]
["в том числе:\nна выплаты по оплате труда",null,null,null,null,null,null,null,null,null,null,null,null,null,null,null,null,null,null,null,null,null,null,null,null,null,null,null,null,null,null,null,null,null,null,null,null,null,null,null,null,"2141",null,null,null,null,null,null,null,"119",null,null,null,null,null,null,null,null,null,null,null,null,null,null,null,null,null,null,null,null,null,null,null,null,null,null,null,null,null,null,null,null,null,null,null,null,null,null,null,null,"х"]
["на иные выплаты работникам",null,null,null,null,null,null,null,null,null,null,null,null,null,null,null,null,null,null,null,null,null,null,null,null,null,null,null,null,null,null,null,null,null,null,null,null,null,null,null,null,"2142",null,null,null,null,null,null,null,"119",null,null,null,null,null,null,null,null,null,null,null,null,null,null,null,null,null,null,null,null,null,null,null,null,null,null,null,null,null,null,null,null,null,null,null,null,null,null,null,null,"х"]
["денежное довольствие военнослужащих и сотрудников, имеющих специальные звания",null,null,null,null,null,null,null,null,null,null,null,null,null,null,null,null,null,null,null,null,null,null,null,null,null,null,null,null,null,null,null,null,null,null,null,null,null,null,null,null,"2150",null,null,null,null,null,null,null,"131",null,null,null,null,null,null,null,null,null,null,null,null,null,null,null,null,null,null,null,null,null,null,null,null,null,null,null,null,null,null,null,null,null,null,null,null,null,null,null,null,"х"]
["иные выплаты военнослужащим и сотрудникам, имеющим специальные звания",null,null,null,null,null,null,null,null,null,null,null,null,null,null,null,null,null,null,null,null,null,null,null,null,null,null,null,null,null,null,null,null,null,null,null,null,null,null,null,null,"2160",null,null,null,null,null,null,null,"134",null,null,null,null,null,null,null,null,null,null,null,null,null,null,null,null,null,null,null,null,null,null,null,null,null,null,null,null,null,null,null,null,null,null,null,null,null,null,null,null,"х"]
["страховые взносы на обязательное социальное страхование в части выплат персоналу, подлежащих обложению страховыми взносами",null,null,null,null,null,null,null,null,null,null,null,null,null,null,null,null,null,null,null,null,null,null,null,null,null,null,null,null,null,null,null,null,null,null,null,null,null,null,null,null,"2170",null,null,null,null,null,null,null,"139",null,null,null,null,null,null,null,null,null,null,null,null,null,null,null,null,null,null,null,null,null,null,null,null,null,null,null,null,null,null,null,null,null,null,null,null,null,null,null,null,"х"]
["в том числе:\nна оплату труда стажеров",null,null,null,null,null,null,null,null,null,null,null,null,null,null,null,null,null,null,null,null,null,null,null,null,null,null,null,null,null,null,null,null,null,null,null,null,null,null,null,null,"2171",null,null,null,null,null,null,null,"139",null,null,null,null,null,null,null,null,null,null,null,null,null,null,null,null,null,null,null,null,null,null,null,null,null,null,null,null,null,null,null,null,null,null,null,null,null,null,null,null,"х"]
["на иные выплаты гражданским лицам (денежное содержание)",null,null,null,null,null,null,null,null,null,null,null,null,null,null,null,null,null,null,null,null,null,null,null,null,null,null,null,null,null,null,null,null,null,null,null,null,null,null,null,null,"2172",null,null,null,null,null,null,null,"139",null,null,null,null,null,null,null,null,null,null,null,null,null,null,null,null,null,null,null,null,null,null,null,null,null,null,null,null,null,null,null,null,null,null,null,null,null,null,null,null,"х"]
["социальные и иные выплаты населению, всего",null,null,null,null,null,null,null,null,null,null,null,null,null,null,null,null,null,null,null,null,null,null,null,null,null,null,null,null,null,null,null,null,null,null,null,null,null,null,null,null,"2200",null,null,null,null,null,null,null,"300",null,null,null,null,null,null,null,null,null,null,null,null,null,null,null,null,null,null,null,null,null,null,null,null,null,{"$f":"BY73+CB73","v":46506.78},{"$f":"BY76","v":40506.78},null,null,{"$f":"CB76","v":6000},{"$f":"CD73+CG73","v":600},null,null,null,{"$f":"CG76","v":600},{"$f":"CI73+CL73","v":600},null,null,null,{"$f":"CL76","v":600},"х"]
["в том числе:\nсоциальные выплаты гражданам, кроме публичных нормативных социальных выплат",null,null,null,null,null,null,null,null,null,null,null,null,null,null,null,null,null,null,null,null,null,null,null,null,null,null,null,null,null,null,null,null,null,null,null,null,null,null,null,null,"2210",null,null,null,null,null,null,null,"320",null,null,null,null,null,null,null,null,null,null,null,null,null,null,null,null,null,null,null,null,null,null,null,null,null,null,null,null,null,null,null,null,null,null,null,null,null,null,null,null,"х"]
["из них:\nпособия, компенсации и иные социальные выплаты гражданам, кроме публичных нормативных обязательств",null,null,null,null,null,null,null,null,null,null,null,null,null,null,null,null,null,null,null,null,null,null,null,null,null,null,null,null,null,null,null,null,null,null,null,null,null,null,null,null,"2211",null,null,null,null,null,null,null,"321",null,null,null,null,null,null,null,null,null,null,null,null,null,null,null,null,null,null,null,null,null,null,null,null,null,null,null,null,null,null,null,null,null,null,null,null,null,null,null,null,"х"]
["социальные пособия и компенсации персоналу в денежной форме",null,null,null,null,null,null,null,null,null,null,null,null,null,null,null,null,null,null,null,null,null,null,null,null,null,null,null,null,null,null,null,null,null,null,null,null,null,null,null,null,"2212",null,null,null,null,null,null,null,"111",null,null,null,null,null,null,null,null,null,null,null,null,"0707 266",null,null,null,null,null,null,null,null,null,null,null,null,{"$f":"BY76+CB76","v":46506.78},40506.78,null,null,6000,{"$f":"CD76+CG76","v":600},null,null,null,600,{"$f":"CI76+CL76","v":600},null,null,null,600]
["выплата стипендий, осуществление иных расходов на социальную поддержку обучающихся за счет средств стипендиального фонда",null,null,null,null,null,null,null,null,null,null,null,null,null,null,null,null,null,null,null,null,null,null,null,null,null,null,null,null,null,null,null,null,null,null,null,null,null,null,null,null,"2220",null,null,null,null,null,null,null,"340",null,null,null,null,null,null,null,null,null,null,null,null,null,null,null,null,null,null,null,null,null,null,null,null,null,null,null,null,null,null,null,null,null,null,null,null,null,null,null,null,"х"]
["на премирование физических лиц за достижения в области культуры, искусства, образования, науки и техники, а также на предоставление грантов с целью поддержки проектов в области науки, культуры и искусства",null,null,null,null,null,null,null,null,null,null,null,null,null,null,null,null,null,null,null,null,null,null,null,null,null,null,null,null,null,null,null,null,null,null,null,null,null,null,null,null,"2230",null,null,null,null,null,null,null,"350",null,null,null,null,null,null,null,null,null,null,null,null,null,null,null,null,null,null,null,null,null,null,null,null,null,null,null,null,null,null,null,null,null,null,null,null,null,null,null,null,"х"]
["социальное обеспечение детей-сирот и детей, оставшихся без попечения родителей",null,null,null,null,null,null,null,null,null,null,null,null,null,null,null,null,null,null,null,null,null,null,null,null,null,null,null,null,null,null,null,null,null,null,null,null,null,null,null,null,"2240",null,null,null,null,null,null,null,"360",null,null,null,null,null,null,null,null,null,null,null,null,null,null,null,null,null,null,null,null,null,null,null,null,null,null,null,null,null,null,null,null,null,null,null,null,null,null,null,null,"х"]
["уплата налогов, сборов и иных платежей, всего",null,null,null,null,null,null,null,null,null,null,null,null,null,null,null,null,null,null,null,null,null,null,null,null,null,null,null,null,null,null,null,null,null,null,null,null,null,null,null,null,"2300",null,null,null,null,null,null,null,"850",null,null,null,null,null,null,null,null,null,null,null,null,null,null,null,null,null,null,null,null,null,null,null,null,null,{"$f":"BY80+CB80","v":150000},null,null,null,{"$f":"CB82","v":150000},{"$f":"CD80+CG80","v":150000},null,null,null,{"$f":"CG82","v":150000},{"$f":"CI80+CL80","v":150000},null,null,null,{"$f":"CL82","v":150000},"х"]
["из них:\nналог на имущество организаций и земельный налог",null,null,null,null,null,null,null,null,null,null,null,null,null,null,null,null,null,null,null,null,null,null,null,null,null,null,null,null,null,null,null,null,null,null,null,null,null,null,null,null,"2310",null,null,null,null,null,null,null,"851",null,null,null,null,null,null,null,null,null,null,null,null,null,null,null,null,null,null,null,null,null,null,null,null,null,null,null,null,null,null,null,null,null,null,null,null,null,null,null,null,"х"]
["налоги, пошлины и сборы\nналог на имущество организаций и земельный налог",null,null,null,null,null,null,null,null,null,null,null,null,null,null,null,null,null,null,null,null,null,null,null,null,null,null,null,null,null,null,null,null,null,null,null,null,null,null,null,null,"2320",null,null,null,null,null,null,null,"852",null,null,null,null,null,null,null,null,null,null,null,null,"0707 291",null,null,null,null,null,null,null,null,null,null,null,null,{"$f":"BY82+CB82","v":150000},null,null,null,150000,{"$f":"CD82+CG82","v":150000},null,null,null,150000,{"$f":"CI82+CL82","v":150000},null,null,null,150000,"х"]
["иные налоги (включаемые в состав расходов) в бюджеты бюджетной системы Российской Федерации, а также государственная пошлина",null,null,null,null,null,null,null,null,null,null,null,null,null,null,null,null,null,null,null,null,null,null,null,null,null,null,null,null,null,null,null,null,null,null,null,null,null,null,null,null,"2320",null,null,null,null,null,null,null,"852",null,null,null,null,null,null,null,null,null,null,null,null,null,null,null,null,null,null,null,null,null,null,null,null,null,null,null,null,null,null,null,null,null,null,null,null,null,null,null,null,"х"]
["уплата штрафов (в том числе административных), пеней, иных платежей",null,null,null,null,null,null,null,null,null,null,null,null,null,null,null,null,null,null,null,null,null,null,null,null,null,null,null,null,null,null,null,null,null,null,null,null,null,null,null,null,"2330",null,null,null,null,null,null,null,"853",null,null,null,null,null,null,null,null,null,null,null,null,null,null,null,null,null,null,null,null,null,null,null,null,null,null,null,null,null,null,null,null,null,null,null,null,null,null,null,null,"х"]
["безвозмездные перечисления организациям и физическим лицам, всего",null,null,null,null,null,null,null,null,null,null,null,null,null,null,null,null,null,null,null,null,null,null,null,null,null,null,null,null,null,null,null,null,null,null,null,null,null,null,null,null,"2400",null,null,null,null,null,null,null,"х",null,null,null,null,null,null,null,null,null,null,null,null,null,null,null,null,null,null,null,null,null,null,null,null,null,null,null,null,null,null,null,null,null,null,null,null,null,null,null,null,"х"]
["из них:\nгранты, предоставляемые другим организациям и физическим лицам",null,null,null,null,null,null,null,null,null,null,null,null,null,null,null,null,null,null,null,null,null,null,null,null,null,null,null,null,null,null,null,null,null,null,null,null,null,null,null,null,"2410",null,null,null,null,null,null,null,"810",null,null,null,null,null,null,null,null,null,null,null,null,null,null,null,null,null,null,null,null,null,null,null,null,null,null,null,null,null,null,null,null,null,null,null,null,null,null,null,null,"х"]
["взносы в международные организации",null,null,null,null,null,null,null,null,null,null,null,null,null,null,null,null,null,null,null,null,null,null,null,null,null,null,null,null,null,null,null,null,null,null,null,null,null,null,null,null,"2420",null,null,null,null,null,null,null,"862",null,null,null,null,null,null,null,null,null,null,null,null,null,null,null,null,null,null,null,null,null,null,null,null,null,null,null,null,null,null,null,null,null,null,null,null,null,null,null,null,"х"]
["платежи в целях обеспечения реализации соглашений с правительствами иностранных государств и международными организациями",null,null,null,null,null,null,null,null,null,null,null,null,null,null,null,null,null,null,null,null,null,null,null,null,null,null,null,null,null,null,null,null,null,null,null,null,null,null,null,null,"2430",null,null,null,null,null,null,null,"863",null,null,null,null,null,null,null,null,null,null,null,null,null,null,null,null,null,null,null,null,null,null,null,null,null,null,null,null,null,null,null,null,null,null,null,null,null,null,null,null,"х"]
["прочие выплаты (кроме выплат на закупку товаров, работ, услуг)",null,null,null,null,null,null,null,null,null,null,null,null,null,null,null,null,null,null,null,null,null,null,null,null,null,null,null,null,null,null,null,null,null,null,null,null,null,null,null,null,"2500",null,null,null,null,null,null,null,"х",null,null,null,null,null,null,null,null,null,null,null,null,null,null,null,null,null,null,null,null,null,null,null,null,null,{"$f":"CB89","v":20000},null,null,null,{"$f":"CB91","v":20000},null,null,null,null,null,null,null,null,null,null,"х"]
["исполнение судебных актов Российской Федерации и мировых соглашений по возмещению вреда, причиненного в результате деятельности учреждения",null,null,null,null,null,null,null,null,null,null,null,null,null,null,null,null,null,null,null,null,null,null,null,null,null,null,null,null,null,null,null,null,null,null,null,null,null,null,null,null,"2520",null,null,null,null,null,null,null,"831",null,null,null,null,null,null,null,null,null,null,null,null,null,null,null,null,null,null,null,null,null,null,null,null,null,null,null,null,null,null,null,null,null,null,null,null,null,null,null,null,"х"]
["прочие расходы",null,null,null,null,null,null,null,null,null,null,null,null,null,null,null,null,null,null,null,null,null,null,null,null,null,null,null,null,null,null,null,null,null,null,null,null,null,null,null,null,"2521",null,null,null,null,null,null,null,"112",null,null,null,null,null,null,null,null,null,null,null,null,"0707 226",null,null,null,null,null,null,null,null,null,null,null,null,{"$f":"CB91","v":20000},null,null,null,20000,null,null,null,null,null,null,null,null,null,null,"х"]
["расходы на закупку товаров, работ, услуг, всего 7",null,null,null,null,null,null,null,null,null,null,null,null,null,null,null,null,null,null,null,null,null,null,null,null,null,null,null,null,null,null,null,null,null,null,null,null,null,null,null,null,"2600",null,null,null,null,null,null,null,"х",null,null,null,null,null,null,null,null,null,null,null,null,null,null,null,null,null,null,null,null,null,null,null,null,null,{"$f":"BY92+BZ92+CA92+CB92","v":10029340.518974002},{"$f":"SUM(BY93:BY116)-0.01","v":6226345.0789740011},{"$f":"SUM(BZ93:BZ116)","v":1383036.4},null,{"$f":"SUM(CB93:CB117)","v":2419959.04},{"$f":"SUM(CC93:CC120)","v":8399500.8399999999},{"$f":"SUM(CD93:CD120)","v":4991691.57},{"$f":"SUM(CE93:CE120)","v":1052450.24},null,{"$f":"SUM(CG93:CG120)","v":2355359.0300000003},{"$f":"SUM(CH93:CH120)","v":8399500.8399999999},{"$f":"SUM(CI93:CI120)","v":4991691.57},{"$f":"SUM(CJ93:CJ120)","v":1052450.24},null,{"$f":"SUM(CL93:CL120)","v":2355359.0300000003}]
["услуги связи",null,null,null,null,null,null,null,null,null,null,null,null,null,null,null,null,null,null,null,null,null,null,null,null,null,null,null,null,null,null,null,null,null,null,null,null,null,null,null,null,"2610",null,null,null,null,null,null,null,"244",null,null,null,null,null,null,null,null,null,null,null,null,"0707  221",null,null,null,null,null,null,null,null,null,null,null,null,{"$f":"BY93+BZ93+CA93+CB93","v":164065.272},{"$f":"192668-BY94","v":129395.83199999999},null,null,34669.440000000002,{"$f":"CD93+CE93+CF93+CG93","v":164065.27000000002},{"$f":"192668-CD94","v":129395.83},null,null,34669.440000000002,{"$f":"CI93+CJ93+CK93+CL93","v":164065.27000000002},{"$f":"192668-CI94","v":129395.83},null,null,34669.440000000002]
["услуги связи",null,null,null,null,null,null,null,null,null,null,null,null,null,null,null,null,null,null,null,null,null,null,null,null,null,null,null,null,null,null,null,null,null,null,null,null,null,null,null,null,"2611",null,null,null,null,null,null,null,"244",null,null,null,null,null,null,null,null,null,null,null,null,"0801  221",null,null,null,null,null,null,null,null,null,null,null,null,{"$f":"BY94+BZ94+CA94+CB94","v":63272.167999999998},{"$f":"[2]Лист6!$CD$13","v":63272.167999999998},null,null,null,{"$f":"CD94+CE94+CF94+CG94","v":63272.17},63272.17,null,null,null,{"$f":"CI94+CJ94+CK94+CL94","v":63272.17},63272.17]
["транспортные услуги",null,null,null,null,null,null,null,null,null,null,null,null,null,null,null,null,null,null,null,null,null,null,null,null,null,null,null,null,null,null,null,null,null,null,null,null,null,null,null,null,"2612",null,null,null,null,null,null,null,"244",null,null,null,null,null,null,null,null,null,null,null,null,"0707  222",null,null,null,null,null,null,null,null,null,null,null,null,248754,{"$f":"[1]Лист6!$CD$35","v":192238},6100,null,{"$f":"50416","v":50416},255754,{"$f":"205338-6100","v":199238},6100,null,{"$f":"50416","v":50416},255754,{"$f":"205338-6100","v":199238},6100,null,{"$f":"50416","v":50416}]
["транспортные услуги",null,null,null,null,null,null,null,null,null,null,null,null,null,null,null,null,null,null,null,null,null,null,null,null,null,null,null,null,null,null,null,null,null,null,null,null,null,null,null,null,"2613",null,null,null,null,null,null,null,"244",null,null,null,null,null,null,null,null,null,null,null,null,"0801  222",null,null,null,null,null,null,null,null,null,null,null,null,66650,{"$f":"[2]Лист6!$CD$40","v":66650},null,null,null,66650,{"$f":"36050+30600","v":66650},null,null,null,66650,{"$f":"36050+30600","v":66650}]
["коммунальные услуги",null,null,null,null,null,null,null,null,null,null,null,null,null,null,null,null,null,null,null,null,null,null,null,null,null,null,null,null,null,null,null,null,null,null,null,null,null,null,null,null,"2614",null,null,null,null,null,null,null,"244",null,null,null,null,null,null,null,null,null,null,null,null,"0707 223",null,null,null,null,null,null,null,null,null,null,null,null,874121.82458400005,{"$f":"[1]Лист6!$CD$60","v":729779.154584},null,null,{"$f":"[1]Лист6!$CH$60","v":144342.66999999998},907270.00999999989,{"$f":"1043998.44-CD98","v":762927.34999999986},null,null,144342.66,907270.00999999989,{"$f":"1043998.44-CI98","v":762927.34999999986},null,null,144342.66]
["коммунальные услуги",null,null,null,null,null,null,null,null,null,null,null,null,null,null,null,null,null,null,null,null,null,null,null,null,null,null,null,null,null,null,null,null,null,null,null,null,null,null,null,null,"2615",null,null,null,null,null,null,null,"244",null,null,null,null,null,null,null,null,null,null,null,null,"0801  223",null,null,null,null,null,null,null,null,null,null,null,null,281071.09239000001,{"$f":"[2]Лист6!$CD$65","v":281071.09239000001},null,null,null,281071.09000000003,281071.09000000003,null,null,null,281071.09000000003,281071.09000000003]
["услуги по содержанию имущества",null,null,null,null,null,null,null,null,null,null,null,null,null,null,null,null,null,null,null,null,null,null,null,null,null,null,null,null,null,null,null,null,null,null,null,null,null,null,null,null,"2616",null,null,null,null,null,null,null,"244",null,null,null,null,null,null,null,null,null,null,null,null,"0707  225",null,null,null,null,null,null,null,null,null,null,null,null,2803279.53,{"$f":"[1]Лист7!$CD$35","v":2010884.2799999998},630232.4,null,162162.85,852731.73247599998,{"$f":"1027222.76-CD100","v":690568.882476},null,null,162162.85,852731.73247599998,{"$f":"1027222.76-CI100","v":690568.882476},null,null,162162.85]
["услуги по содержанию имущества",null,null,null,null,null,null,null,null,null,null,null,null,null,null,null,null,null,null,null,null,null,null,null,null,null,null,null,null,null,null,null,null,null,null,null,null,null,null,null,null,"2617",null,null,null,null,null,null,null,"244",null,null,null,null,null,null,null,null,null,null,null,null,"0801  225",null,null,null,null,null,null,null,null,null,null,null,null,163047.47200000001,{"$f":"[2]Лист7!$CD$19","v":163047.47200000001},null,null,null,336653.87752400001,{"$f":"1025133.61*32.84%","v":336653.87752400001},null,null,null,336653.87752400001,{"$f":"1025133.61*32.84%","v":336653.87752400001}]
["прочие работы, услуги",null,null,null,null,null,null,null,null,null,null,null,null,null,null,null,null,null,null,null,null,null,null,null,null,null,null,null,null,null,null,null,null,null,null,null,null,null,null,null,null,"2618",null,null,null,null,null,null,null,"244",null,null,null,null,null,null,null,null,null,null,null,null,"0707  226",null,null,null,null,null,null,null,null,null,null,null,null,1429533.54,{"$f":"[1]Лист7!$CD$85","v":715330.96},6500,null,707702.58,1573344.02,859141.44,6500,null,707702.58,1573344.02,859141.44,6500,null,707702.58]
["прочие работы, услуги",null,null,null,null,null,null,null,null,null,null,null,null,null,null,null,null,null,null,null,null,null,null,null,null,null,null,null,null,null,null,null,null,null,null,null,null,null,null,null,null,"2619",null,null,null,null,null,null,null,"244",null,null,null,null,null,null,null,null,null,null,null,null,"0801  226",null,null,null,null,null,null,null,null,null,null,null,null,1142646.79,{"$f":"[2]Лист7!$CD$64","v":1142646.79},null,null,null,822646.79,{"$f":"175246.79+100500+866900-320000","v":822646.79},null,null,null,822646.79,{"$f":"175246.79+100500+866900-320000","v":822646.79}]
["страхование",null,null,null,null,null,null,null,null,null,null,null,null,null,null,null,null,null,null,null,null,null,null,null,null,null,null,null,null,null,null,null,null,null,null,null,null,null,null,null,null,"2621",null,null,null,null,null,null,null,"244",null,null,null,null,null,null,null,null,null,null,null,null,"0707  227",null,null,null,null,null,null,null,null,null,null,null,null,0,null,null,null,null,0,null,null,null,null,0]
["увеличение стоимости основных средств",null,null,null,null,null,null,null,null,null,null,null,null,null,null,null,null,null,null,null,null,null,null,null,null,null,null,null,null,null,null,null,null,null,null,null,null,null,null,null,null,"2622",null,null,null,null,null,null,null,"244",null,null,null,null,null,null,null,null,null,null,null,null,"0707  310",null,null,null,null,null,null,null,null,null,null,null,null,722924.88,null,{"$f":"976350.24-291646.24","v":684704},null,38220.879999999997,1014571.12,null,{"$f":"976350.24","v":976350.24},null,38220.879999999997,1014571.12,null,{"$f":"976350.24","v":976350.24},null,38220.879999999997]
["увеличение стоимости лекарственных препаратов и материалов, применяемых в медицинских целях",null,null,null,null,null,null,null,null,null,null,null,null,null,null,null,null,null,null,null,null,null,null,null,null,null,null,null,null,null,null,null,null,null,null,null,null,null,null,null,null,"2623",null,null,null,null,null,null,null,"244",null,null,null,null,null,null,null,null,null,null,null,null,"0707  341",null,null,null,null,null,null,null,null,null,null,null,null,613.25,{"$f":"[1]Лист7!$CD$124","v":613.25},null,null,null,613.25,{"$f":"613.25","v":613.25},null,null,null,613.25,{"$f":"613.25","v":613.25}]
["увеличение стоимости лекарственных препаратов и материалов, применяемых в медицинских целях",null,null,null,null,null,null,null,null,null,null,null,null,null,null,null,null,null,null,null,null,null,null,null,null,null,null,null,null,null,null,null,null,null,null,null,null,null,null,null,null,"2623",null,null,null,null,null,null,null,"244",null,null,null,null,null,null,null,null,null,null,null,null,"0801  341",null,null,null,null,null,null,null,null,null,null,null,null,299.87,{"$f":"[2]Лист7!$CD$86","v":299.87},null,null,null,299.87,299.87,null,null,null,299.87,299.87]
["увеличение стоимости продуктов питания",null,null,null,null,null,null,null,null,null,null,null,null,null,null,null,null,null,null,null,null,null,null,null,null,null,null,null,null,null,null,null,null,null,null,null,null,null,null,null,null,"2624",null,null,null,null,null,null,null,"244",null,null,null,null,null,null,null,null,null,null,null,null,"0707  342",null,null,null,null,null,null,null,null,null,null,null,null,1094420,{"$f":"[1]Лист7!$CD$131","v":77800},25500,null,991120,1094420,{"$f":"103300-25500","v":77800},25500,null,991120,1094420,{"$f":"103300-25500","v":77800},25500,null,991120]
["увеличение стоимости продуктов питания",null,null,null,null,null,null,null,null,null,null,null,null,null,null,null,null,null,null,null,null,null,null,null,null,null,null,null,null,null,null,null,null,null,null,null,null,null,null,null,null,"2625",null,null,null,null,null,null,null,"244",null,null,null,null,null,null,null,null,null,null,null,null,"0801  342",null,null,null,null,null,null,null,null,null,null,null,null,103693.4,{"$f":"[2]Лист7!$CD$90","v":103693.4},null,null,null,103693.4,{"$f":"31000+72693.4","v":103693.4},null,null,null,103693.4,{"$f":"31000+72693.4","v":103693.4}]
["увеличение стоимости мягкого инвентаря",null,null,null,null,null,null,null,null,null,null,null,null,null,null,null,null,null,null,null,null,null,null,null,null,null,null,null,null,null,null,null,null,null,null,null,null,null,null,null,null,"2626",null,null,null,null,null,null,null,"244",null,null,null,null,null,null,null,null,null,null,null,null,"0707  345",null,null,null,null,null,null,null,null,null,null,null,null,18345.16,{"$f":"[1]Лист7!$CD$135","v":18345.16},null,null,null,18345.16,{"$f":"18345.16","v":18345.16},null,null,null,18345.16,{"$f":"18345.16","v":18345.16}]
["увеличение стоимости мягкого инвентаря",null,null,null,null,null,null,null,null,null,null,null,null,null,null,null,null,null,null,null,null,null,null,null,null,null,null,null,null,null,null,null,null,null,null,null,null,null,null,null,null,"2627",null,null,null,null,null,null,null,"244",null,null,null,null,null,null,null,null,null,null,null,null,"0801  345",null,null,null,null,null,null,null,null,null,null,null,null,8970.44,{"$f":"[2]Лист7!$CD$98","v":8970.44},null,null,null,8970.44,8970.44,null,null,null,8970.44,8970.44]
["увеличение стоимости прочих оборотных запасов (материалов)",null,null,null,null,null,null,null,null,null,null,null,null,null,null,null,null,null,null,null,null,null,null,null,null,null,null,null,null,null,null,null,null,null,null,null,null,null,null,null,null,"2625",null,null,null,null,null,null,null,"244",null,null,null,null,null,null,null,null,null,null,null,null,"0707 346",null,null,null,null,null,null,null,null,null,null,null,null,423134.02999999997,{"$f":"[1]Лист7!$CD$158","v":156593.40999999997},17000,null,{"$f":"185540.62+64000","v":249540.62},385790.7,{"$f":"85156.08+51300+63794-17000","v":183250.08000000002},17000,null,185540.62,385790.7,{"$f":"85156.08+51300+63794-17000","v":183250.08000000002},17000,null,185540.62]
["увеличение стоимости прочих оборотных запасов (материалов)",null,null,null,null,null,null,null,null,null,null,null,null,null,null,null,null,null,null,null,null,null,null,null,null,null,null,null,null,null,null,null,null,null,null,null,null,null,null,null,null,"2626",null,null,null,null,null,null,null,"244",null,null,null,null,null,null,null,null,null,null,null,null,"0801  346",null,null,null,null,null,null,null,null,null,null,null,null,141537.17000000001,{"$f":"[2]Лист7!$CD$119","v":141537.17000000001},null,null,null,141877.29999999999,{"$f":"48451.7+21719+71706.6","v":141877.29999999999},null,null,null,141877.29999999999,{"$f":"48451.7+21719+71706.6","v":141877.29999999999}]
["Увеличение стоимости материальных запасов для целей капитальных вложений",null,null,null,null,null,null,null,null,null,null,null,null,null,null,null,null,null,null,null,null,null,null,null,null,null,null,null,null,null,null,null,null,null,null,null,null,null,null,null,null,"2627",null,null,null,null,null,null,null,"244",null,null,null,null,null,null,null,null,null,null,null,null,"0707  347",null,null,null,null,null,null,null,null,null,null,null,null,21960.639999999999,{"$f":"[1]Лист7!$CD$160","v":11976.64},null,null,9984,21960.639999999999,11976.64,null,null,9984,21960.639999999999,11976.64,null,null,9984]
["Увеличение стоимости материальных запасов для целей капитальных вложений",null,null,null,null,null,null,null,null,null,null,null,null,null,null,null,null,null,null,null,null,null,null,null,null,null,null,null,null,null,null,null,null,null,null,null,null,null,null,null,null,"2628",null,null,null,null,null,null,null,"244",null,null,null,null,null,null,null,null,null,null,null,null,"0801  347",null,null,null,null,null,null,null,null,null,null,null,null,0,null,null,null,null,0,null,null,null,null,0]
["увеличение стоимости прочих материальных запасов однократного применения",null,null,null,null,null,null,null,null,null,null,null,null,null,null,null,null,null,null,null,null,null,null,null,null,null,null,null,null,null,null,null,null,null,null,null,null,null,null,null,null,"2629",null,null,null,null,null,null,null,"244",null,null,null,null,null,null,null,null,null,null,null,null,"0707  349",null,null,null,null,null,null,null,null,null,null,null,null,191400,{"$f":"[1]Лист7!$CD$175","v":147200},{"$f":"21000-8000","v":13000},null,31200,220500,{"$f":"54900+134400-21000","v":168300},21000,null,31200,220500,{"$f":"54900+134400-21000","v":168300},21000,null,31200]
["увеличение стоимости прочих материальных запасов однократного применения",null,null,null,null,null,null,null,null,null,null,null,null,null,null,null,null,null,null,null,null,null,null,null,null,null,null,null,null,null,null,null,null,null,null,null,null,null,null,null,null,"2630",null,null,null,null,null,null,null,"244",null,null,null,null,null,null,null,null,null,null,null,null,"0801  349",null,null,null,null,null,null,null,null,null,null,null,null,65000,{"$f":"[2]Лист7!$CD$123","v":65000},null,null,null,65000,{"$f":"65000","v":65000},null,null,null,65000,{"$f":"65000","v":65000}]
["Увеличение стоимости горюче-смазочных материалов",null,null,null,null,null,null,null,null,null,null,null,null,null,null,null,null,null,null,null,null,null,null,null,null,null,null,null,null,null,null,null,null,null,null,null,null,null,null,null,null,"2631",null,null,null,null,null,null,null,"244",null,null,null,null,null,null,null,null,null,null,null,null,"0707  343",null,null,null,null,null,null,null,null,null,null,null,null,{"$f":"BY117+BZ117+CA117+CB117","v":600},null,null,null,600,{"$f":"CD117+CE117+CF117+CG117","v":0},null,null,null,null,{"$f":"CI117+CJ117+CK117+CL117","v":0}]
["прочую закупку товаров, работ и услуг, всего",null,null,null,null,null,null,null,null,null,null,null,null,null,null,null,null,null,null,null,null,null,null,null,null,null,null,null,null,null,null,null,null,null,null,null,null,null,null,null,null,"2640",null,null,null,null,null,null,null,"244"]
["из них:"]
[]
["капитальные вложения в объекты государственной (муниципальной) собственности, всего",null,null,null,null,null,null,null,null,null,null,null,null,null,null,null,null,null,null,null,null,null,null,null,null,null,null,null,null,null,null,null,null,null,null,null,null,null,null,null,null,"2650",null,null,null,null,null,null,null,"400"]
["в том числе:\nприобретение объектов недвижимого имущества муниципальными учреждениями",null,null,null,null,null,null,null,null,null,null,null,null,null,null,null,null,null,null,null,null,null,null,null,null,null,null,null,null,null,null,null,null,null,null,null,null,null,null,null,null,"2651",null,null,null,null,null,null,null,"406"]
["строительство (реконструкция) объектов недвижимого имущества муниципальными учреждениями",null,null,null,null,null,null,null,null,null,null,null,null,null,null,null,null,null,null,null,null,null,null,null,null,null,null,null,null,null,null,null,null,null,null,null,null,null,null,null,null,"2652",null,null,null,null,null,null,null,"407"]
["Выплаты, уменьшающие доход, всего 8",null,null,null,null,null,null,null,null,null,null,null,null,null,null,null,null,null,null,null,null,null,null,null,null,null,null,null,null,null,null,null,null,null,null,null,null,null,null,null,null,"3000",null,null,null,null,null,null,null,"100",null,null,null,null,null,null,null,null,null,null,null,null,null,null,null,null,null,null,null,null,null,null,null,null,null,null,null,null,null,null,null,null,null,null,null,null,null,null,null,null,"х"]
["в том числе:\nналог на прибыль 8",null,null,null,null,null,null,null,null,null,null,null,null,null,null,null,null,null,null,null,null,null,null,null,null,null,null,null,null,null,null,null,null,null,null,null,null,null,null,null,null,"3010",null,null,null,null,null,null,null,null,null,null,null,null,null,null,null,null,null,null,null,null,null,null,null,null,null,null,null,null,null,null,null,null,null,null,null,null,null,null,null,null,null,null,null,null,null,null,null,null,"х"]
["налог на добавленную стоимость 8",null,null,null,null,null,null,null,null,null,null,null,null,null,null,null,null,null,null,null,null,null,null,null,null,null,null,null,null,null,null,null,null,null,null,null,null,null,null,null,null,"3020",null,null,null,null,null,null,null,null,null,null,null,null,null,null,null,null,null,null,null,null,null,null,null,null,null,null,null,null,null,null,null,null,null,null,null,null,null,null,null,null,null,null,null,null,null,null,null,null,"х"]
["прочие налоги, уменьшающие доход 8",null,null,null,null,null,null,null,null,null,null,null,null,null,null,null,null,null,null,null,null,null,null,null,null,null,null,null,null,null,null,null,null,null,null,null,null,null,null,null,null,"3030",null,null,null,null,null,null,null,null,null,null,null,null,null,null,null,null,null,null,null,null,null,null,null,null,null,null,null,null,null,null,null,null,null,null,null,null,null,null,null,null,null,null,null,null,null,null,null,null,"х"]
["Прочие выплаты, всего 9",null,null,null,null,null,null,null,null,null,null,null,null,null,null,null,null,null,null,null,null,null,null,null,null,null,null,null,null,null,null,null,null,null,null,null,null,null,null,null,null,"4000",null,null,null,null,null,null,null,"х",null,null,null,null,null,null,null,null,null,null,null,null,null,null,null,null,null,null,null,null,null,null,null,null,null,null,null,null,null,null,null,null,null,null,null,null,null,null,null,null,"х"]
["из них:\nвозврат в бюджет средств субсидии",null,null,null,null,null,null,null,null,null,null,null,null,null,null,null,null,null,null,null,null,null,null,null,null,null,null,null,null,null,null,null,null,null,null,null,null,null,null,null,null,"4010",null,null,null,null,null,null,null,"610",null,null,null,null,null,null,null,null,null,null,null,null,null,null,null,null,null,null,null,null,null,null,null,null,null,null,null,null,null,null,null,null,null,null,null,null,null,null,null,null,"х"]
[]
[]
["_____1_В случае утверждения закона (решения) о бюджете на текущий финансовый год и плановый период."]
["_____2_Указывается дата подписания Плана, а в случае утверждения Плана уполномоченным лицом учреждения - дата утверждения Плана."]
["_____3_В графе 3 отражаются:"]
["_____по строкам 1100 - 1900 - коды аналитической группы подвида доходов бюджетов классификации доходов бюджетов;"]
["_____по строкам 1980 - 1990 - коды аналитической группы вида источников финансирования дефицитов бюджетов классификации источников финансирования дефицитов бюджетов;"]
["_____по строкам 2000 - 2652 - коды видов расходов бюджетов классификации расходов бюджетов;"]
["_____по строкам 3000 - 3030 - коды аналитической группы подвида доходов бюджетов классификации доходов бюджетов, по которым планируется уплата налогов, уменьшающих доход (в том числе налог на прибыль, налог на добавленную стоимость, единый налог на вмененный доход для отдельных видов деятельности);"]
["_____по строкам 4000 - 4040 - коды аналитической группы вида источников финансирования дефицитов бюджетов классификации источников финансирования дефицитов бюджетов."]
["_____4_В графе 4 указывается код классификации операций сектора государственного управления в соответствии с Порядком применения классификации операций сектора государственного управления, утвержденным приказом Министерства финансов Российской Федерации от 29 ноября 2017 г. № 209н (зарегистрирован в Министерстве юстиции Российской Федерации 12 февраля 2018 г., регистрационный номер 50003), и код функциональной статьи расходов"]
["_____5_По строкам 0001 и 0002 указываются планируемые суммы остатков средств на начало и на конец планируемого года, если указанные показатели по решению органа, осуществляющего функции и полномочия учредителя, планируются на этапе формирования проекта Плана  либо указываются фактические остатки средств при внесении изменений в утвержденный План после завершения отчетного финансового года."]
["_____6_Показатели прочих поступлений включают в себя в том числе показатели увеличения денежных средств за счет возврата дебиторской задолженности прошлых лет, включая возврат предоставленных займов (микрозаймов), а также за счет возврата средств, размещенных на банковских депозитах. При формировании Плана (проекта Плана) обособленному(ым) подразделению(ям) показатель прочих поступлений включает показатель поступлений в рамках расчетов между головным учреждением и обособленным подразделением."]
["_____7_Показатели выплат по расходам на закупки товаров, работ, услуг, отраженные в строке 2600 Раздела 1 \"Поступления и выплаты\" Плана, подлежат детализации в Разделе 2 \"Сведения по выплатам на закупку товаров, работ, услуг\" Плана."]
["_____8_Показатель отражается со знаком \"минус\"."]
["_____9_Показатели прочих выплат включают в себя в том числе показатели уменьшения денежных средств за счет возврата средств субсидий, предоставленных до начала текущего финансового года, предоставления займов (микрозаймов), размещения автономными учреждениями денежных средств на банковских депозитах. При формировании Плана (проекта Плана) обособленному(ым) подразделению(ям) показатель прочих выплат включает показатель поступлений в рамках расчетов между головным учреждением и обособленным подразделением."]
[]
[]
[]
[null,null,null,null,null,null,null,null,null,null,null,null,null,null,null,null,null,null,null,null,null,null,null,null,null,null,null,null,null,null,null,null,null,null,null,null,null,null,null,null,null,null,null,null,null,null,null,null,null,null,null,null,null,null,null,null,null,null,null,null,null,null,null,null,null,null,null,null,null,null,null,null,null,null,null,"0707",{"$f":"BY60+BY64+BY76+BY93+BY95+BY97+BY99+BY101+BY105+BY107+BY109+BY111+BY113+BY115-0.01","v":17617177.095876001}]
[null,null,null,null,null,null,null,null,null,null,null,null,null,null,null,null,null,null,null,null,null,null,null,null,null,null,null,null,null,null,null,null,null,null,null,null,null,null,null,null,null,null,null,null,null,null,null,null,null,null,null,null,null,null,null,null,null,null,null,null,null,null,null,null,null,null,null,null,null,null,null,null,null,null,null,"0801",{"$f":"BY61+BY65+BY94+BY96+BY98+BY100+BY102+BY106+BY108+BY110+BY112+BY116","v":4102321.0915179998}]
[null,null,null,null,null,null,null,null,null,null,null,null,null,null,null,null,null,null,null,null,null,null,null,null,null,null,null,null,null,null,null,null,null,null,null,null,null,null,null,null,null,null,null,null,null,null,null,null,null,null,null,null,null,null,null,null,null,null,null,null,null,null,null,null,null,null,null,null,null,null,null,null,null,null,null,null,{"$f":"BY149+BY150","v":21719498.187394001}]

{"sheet":"раздел 2","index":1,"n_rows":81,"n_cols":149,"rows_kept":81,"cut":false,"hidden":false,"merged":[[71,23,71,25],[71,26,71,28],[75,0,75,160],[80,0,80,160],[71,0,71,1],[71,2,71,4],[71,5,71,6],[71,8,71,22],[76,0,76,160],[68,0,68,24],[68,33,68,90],[69,0,69,24],[69,33,69,90],[65,0,65,90],[66,0,66,90],[61,8,61,9],[61,10,61,12],[61,13,61,14],[61,16,61,30],[61,31,61,33],[61,34,61,36],[58,78,58,95],[59,78,59,95],[51,148,52,160],[58,38,58,55],[48,91,49,98],[48,99,49,108],[48,8,48,90],[49,8,49,90],[48,109,49,121],[48,122,49,134],[51,109,52,121],[51,122,52,134],[55,42,55,59],[55,62,55,73],[55,76,55,95],[56,42,56,59],[56,62,56,73],[56,76,56,95],[51,91,52,98],[51,99,52,108],[52,8,52,90],[59,38,59,55],[58,58,58,75],[59,58,59,75],[48,0,49,7],[51,0,52,7],[51,8,51,90],[50,0,50,7],[50,122,50,134],[47,135,47,147],[47,148,47,160],[47,0,47,7],[47,8,47,90],[47,91,47,98],[47,99,47,108],[47,122,47,134],[47,109,47,121],[48,135,49,147],[50,135,50,147],[50,148,50,160],[51,135,52,147],[48,148,49,160],[50,8,50,90],[50,91,50,98],[50,99,50,108],[50,109,50,121],[46,109,46,121],[46,122,46,134],[46,135,46,147],[46,148,46,160],[46,0,46,7],[46,8,46,90],[46,91,46,98],[46,99,46,108],[45,109,45,121],[45,122,45,134],[45,135,45,147],[45,148,45,160],[45,0,45,7],[45,8,45,90],[45,91,45,98],[45,99,45,108],[44,109,44,121],[44,122,44,134],[44,135,44,147],[44,148,44,160],[44,0,44,7],[44,8,44,90],[44,91,44,98],[44,99,44,108],[43,109,43,121],[43,122,43,134],[43,135,43,147],[43,148,43,160],[43,0,43,7],[43,8,43,90],[43,91,43,98],[43,99,43,108],[42,109,42,121],[42,122,42,134],[42,135,42,147],[42,148,42,160],[42,0,42,7],[42,8,42,90],[42,91,42,98],[42,99,42,108],[41,109,41,121],[41,122,41,134],[41,135,41,147],[41,148,41,160],[41,0,41,7],[41,8,41,90],[41,91,41,98],[41,99,41,108],[40,109,40,121],[40,122,40,134],[40,135,40,147],[40,148,40,160],[40,0,40,7],[40,8,40,90],[40,91,40,98],[40,99,40,108],[39,109,39,121],[39,122,39,134],[39,135,39,147],[39,148,39,160],[39,0,39,7],[39,8,39,90],[39,91,39,98],[39,99,39,108],[38,109,38,121],[38,122,38,134],[38,135,38,147],[38,148,38,160],[38,0,38,7],[38,8,38,90],[38,91,38,98],[38,99,38,108],[37,109,37,121],[37,122,37,134],[37,135,37,147],[37,148,37,160],[37,0,37,7],[37,8,37,90],[37,91,37,98],[37,99,37,108],[13,109,13,121],[13,122,13,134],[13,135,13,147],[13,148,13,160],[13,0,13,7],[13,8,13,90],[13,91,13,98],[13,99,13,108],[12,109,12,121],[12,122,12,134],[12,135,12,147],[12,148,12,160],[12,0,12,7],[12,8,12,90],[12,91,12,98],[12,99,12,108],[11,109,11,121],[11,122,11,134],[11,135,11,147],[11,148,11,160],[11,0,11,7],[11,8,11,90],[11,91,11,98],[11,99,11,108],[10,109,10,121],[10,122,10,134],[10,135,10,147],[10,148,10,160],[10,0,10,7],[10,8,10,90],[10,91,10,98],[10,99,10,108],[9,109,9,121],[9,122,9,134],[9,135,9,147],[9,148,9,160],[9,0,9,7],[9,8,9,90],[9,91,9,98],[9,99,9,108],[8,109,8,121],[8,122,8,134],[8,135,8,147],[8,148,8,160],[8,0,8,7],[8,8,8,90],[8,91,8,98],[8,99,8,108],[7,109,7,121],[7,122,7,134],[7,135,7,147],[7,148,7,160],[7,0,7,7],[7,8,7,90],[7,91,7,98],[7,99,7,108],[2,0,4,7],[5,0,5,7],[2,91,4,98],[2,99,4,108],[2,109,2,160],[3,109,3,114],[3,115,3,117],[3,118,3,121],[3,122,3,127],[3,144,3,147],[3,148,4,160],[0,1,0,159],[6,0,6,7],[6,8,6,90],[6,91,6,98],[6,99,6,108],[6,109,6,121],[6,122,6,134],[6,135,6,147],[5,8,5,90],[5,91,5,98],[5,99,5,108],[6,148,6,160],[5,109,5,121],[5,122,5,134],[5,135,5,147],[5,148,5,160],[4,109,4,121],[4,122,4,134],[4,135,4,147],[3,128,3,130],[3,131,3,134],[3,135,3,140],[3,141,3,143],[2,8,4,90],[21,0,21,7],[21,8,21,90],[21,91,21,98],[21,99,21,108],[21,109,21,121],[21,122,21,134],[21,135,21,147],[21,148,21,160],[20,0,20,7],[20,8,20,90],[20,91,20,98],[20,99,20,108],[20,109,20,121],[20,122,20,134],[20,135,20,147],[20,148,20,160],[18,0,18,7],[18,8,18,90],[18,91,18,98],[18,99,18,108],[18,109,18,121],[18,122,18,134],[18,135,18,147],[18,148,18,160],[19,0,19,7],[19,8,19,90],[19,91,19,98],[19,99,19,108],[19,109,19,121],[19,122,19,134],[19,135,19,147],[19,148,19,160],[14,0,14,7],[14,8,14,90],[14,91,14,98],[14,99,14,108],[14,109,14,121],[14,122,14,134],[14,135,14,147],[14,148,14,160],[15,0,15,7],[15,8,15,90],[15,91,15,98],[15,99,15,108],[15,109,15,121],[15,122,15,134],[15,135,15,147],[15,148,15,160],[16,0,16,7],[16,8,16,90],[16,91,16,98],[16,99,16,108],[16,109,16,121],[16,122,16,134],[16,135,16,147],[16,148,16,160],[17,0,17,7],[17,8,17,90],[17,91,17,98],[17,99,17,108],[17,109,17,121],[17,122,17,134],[17,135,17,147],[17,148,17,160],[22,0,22,7],[22,8,22,90],[22,91,22,98],[22,99,22,108],[22,109,22,121],[22,122,22,134],[22,135,22,147],[22,148,22,160],[23,0,23,7],[23,8,23,90],[23,91,23,98],[23,99,23,108],[23,109,23,121],[23,122,23,134],[23,135,23,147],[23,148,23,160],[24,0,24,7],[24,8,24,90],[24,91,24,98],[24,99,24,108],[24,109,24,121],[24,122,24,134],[24,135,24,147],[24,148,24,160],[25,0,25,7],[25,8,25,90],[25,91,25,98],[25,99,25,108],[25,109,25,121],[25,122,25,134],[25,135,25,147],[25,148,25,160],[26,0,26,7],[26,8,26,90],[26,91,26,98],[26,99,26,108],[26,109,26,121],[26,122,26,134],[26,135,26,147],[26,148,26,160],[27,0,27,7],[27,8,27,90],[27,91,27,98],[27,99,27,108],[27,109,27,121],[27,122,27,134],[27,135,27,147],[27,148,27,160],[28,0,28,7],[28,8,28,90],[28,91,28,98],[28,99,28,108],[28,109,28,121],[28,122,28,134],[28,135,28,147],[28,148,28,160],[29,0,29,7],[29,8,29,90],[29,91,29,98],[29,99,29,108],[29,109,29,121],[29,122,29,134],[29,135,29,147],[29,148,29,160],[30,0,30,7],[30,8,30,90],[30,91,30,98],[30,99,30,108],[30,109,30,121],[30,122,30,134],[30,135,30,147],[30,148,30,160],[31,0,31,7],[31,8,31,90],[31,91,31,98],[31,99,31,108],[31,109,31,121],[31,122,31,134],[31,135,31,147],[31,148,31,160],[36,0,36,7],[36,8,36,90],[36,91,36,98],[36,99,36,108],[36,109,36,121],[36,122,36,134],[36,135,36,147],[36,148,36,160],[32,0,32,7],[32,8,32,90],[32,91,32,98],[32,99,32,108],[32,109,32,121],[32,122,32,134],[32,135,32,147],[32,148,32,160],[33,0,33,7],[33,8,33,90],[33,91,33,98],[33,99,33,108],[33,109,33,121],[33,122,33,134],[33,135,33,147],[33,148,33,160],[34,0,34,7],[34,8,34,90],[34,91,34,98],[34,99,34,108],[34,109,34,121],[34,122,34,134],[34,135,34,147],[34,148,34,160],[35,0,35,7],[35,8,35,90],[35,91,35,98],[35,99,35,108],[35,109,35,121],[35,122,35,134],[35,135,35,147],[35,148,35,160]]}
[null,"Раздел 2. Сведения по выплатам на закупки товаров, работ, услуг 10"]
[]
["№\nп/п",null,null,null,null,null,null,null,"Наименование показателя",null,null,null,null,null,null,null,null,null,null,null,null,null,null,null,null,null,null,null,null,null,null,null,null,null,null,null,null,null,null,null,null,null,null,null,null,null,null,null,null,null,null,null,null,null,null,null,null,null,null,null,null,null,null,null,null,null,null,null,null,null,null,null,null,null,null,null,null,null,null,null,null,null,null,null,null,null,null,null,null,null,null,"Коды\nстрок",null,null,null,null,null,null,null,"Год\nначала закупки",null,null,null,null,null,null,null,null,null,"Сумма"]
[null,null,null,null,null,null,null,null,null,null,null,null,null,null,null,null,null,null,null,null,null,null,null,null,null,null,null,null,null,null,null,null,null,null,null,null,null,null,null,null,null,null,null,null,null,null,null,null,null,null,null,null,null,null,null,null,null,null,null,null,null,null,null,null,null,null,null,null,null,null,null,null,null,null,null,null,null,null,null,null,null,null,null,null,null,null,null,null,null,null,null,null,null,null,null,null,null,null,null,null,null,null,null,null,null,null,null,null,null,"на 20",null,null,null,null,null,"20",null,null," г.",null,null,null,"на 20",null,null,null,null,null,"21",null,null," г.",null,null,null,"на 20",null,null,null,null,null,"22",null,null," г.",null,null,null,"за пределами планового периода"]
[null,null,null,null,null,null,null,null,null,null,null,null,null,null,null,null,null,null,null,null,null,null,null,null,null,null,null,null,null,null,null,null,null,null,null,null,null,null,null,null,null,null,null,null,null,null,null,null,null,null,null,null,null,null,null,null,null,null,null,null,null,null,null,null,null,null,null,null,null,null,null,null,null,null,null,null,null,null,null,null,null,null,null,null,null,null,null,null,null,null,null,null,null,null,null,null,null,null,null,null,null,null,null,null,null,null,null,null,null,"(текущий финансовый год)",null,null,null,null,null,null,null,null,null,null,null,null,"(первый год планового периода)",null,null,null,null,null,null,null,null,null,null,null,null,"(второй год планового периода)"]
["1",null,null,null,null,null,null,null,"2",null,null,null,null,null,null,null,null,null,null,null,null,null,null,null,null,null,null,null,null,null,null,null,null,null,null,null,null,null,null,null,null,null,null,null,null,null,null,null,null,null,null,null,null,null,null,null,null,null,null,null,null,null,null,null,null,null,null,null,null,null,null,null,null,null,null,null,null,null,null,null,null,null,null,null,null,null,null,null,null,null,null,"3",null,null,null,null,null,null,null,"4",null,null,null,null,null,null,null,null,null,"5",null,null,null,null,null,null,null,null,null,null,null,null,"6",null,null,null,null,null,null,null,null,null,null,null,null,"7",null,null,null,null,null,null,null,null,null,null,null,null,"8"]
[1,null,null,null,null,null,null,null,"Выплаты на закупку товаров, работ, услуг, всего 11",null,null,null,null,null,null,null,null,null,null,null,null,null,null,null,null,null,null,null,null,null,null,null,null,null,null,null,null,null,null,null,null,null,null,null,null,null,null,null,null,null,null,null,null,null,null,null,null,null,null,null,null,null,null,null,null,null,null,null,null,null,null,null,null,null,null,null,null,null,null,null,null,null,null,null,null,null,null,null,null,null,null,"26000",null,null,null,null,null,null,null,"х",null,null,null,null,null,null,null,null,null,{"$f":"DF11","v":10029340.518974002},null,null,null,null,null,null,null,null,null,null,null,null,{"$f":"DS11","v":8399500.8399999999},null,null,null,null,null,null,null,null,null,null,null,null,{"$f":"EF11","v":8399500.8399999999}]
["1.1",null,null,null,null,null,null,null,"в том числе:\nпо контрактам (договорам), заключенным до начала текущего финансового года без применения норм Федерального закона от 5 апреля 2013 г. № 44-ФЗ \"О контрактной системе в сфере закупок товаров, работ, услуг для обеспечения государственных и муниципальных нужд\" (далее - Федеральный закон № 44-ФЗ) и Федерального закона от 18 июля 2011 г. № 223-ФЗ \"О закупках товаров, работ, услуг отдельными видами юридических лиц\"(далее - Федеральный закон № 223-ФЗ)12",null,null,null,null,null,null,null,null,null,null,null,null,null,null,null,null,null,null,null,null,null,null,null,null,null,null,null,null,null,null,null,null,null,null,null,null,null,null,null,null,null,null,null,null,null,null,null,null,null,null,null,null,null,null,null,null,null,null,null,null,null,null,null,null,null,null,null,null,null,null,null,null,null,null,null,null,null,null,null,null,null,null,"26100",null,null,null,null,null,null,null,"х"]
["1.2",null,null,null,null,null,null,null,"по контрактам (договорам), планируемым к заключению в соответствующем финансовом году без применения норм Федерального закона № 44-ФЗ и Федерального закона № 223-ФЗ 12",null,null,null,null,null,null,null,null,null,null,null,null,null,null,null,null,null,null,null,null,null,null,null,null,null,null,null,null,null,null,null,null,null,null,null,null,null,null,null,null,null,null,null,null,null,null,null,null,null,null,null,null,null,null,null,null,null,null,null,null,null,null,null,null,null,null,null,null,null,null,null,null,null,null,null,null,null,null,null,null,null,null,"26200",null,null,null,null,null,null,null,"х"]
["1.3",null,null,null,null,null,null,null,"по контрактам (договорам), заключенным до начала текущего финансового года с учетом требований Федерального закона № 44-ФЗ и Федерального закона № 223-ФЗ 13",null,null,null,null,null,null,null,null,null,null,null,null,null,null,null,null,null,null,null,null,null,null,null,null,null,null,null,null,null,null,null,null,null,null,null,null,null,null,null,null,null,null,null,null,null,null,null,null,null,null,null,null,null,null,null,null,null,null,null,null,null,null,null,null,null,null,null,null,null,null,null,null,null,null,null,null,null,null,null,null,null,null,"26300",null,null,null,null,null,null,null,"х"]
["1.4",null,null,null,null,null,null,null,"по контрактам (договорам), планируемым к заключению в соответствующем финансовом году с учетом требований Федерального закона № 44-ФЗ и Федерального закона № 223-ФЗ 13",null,null,null,null,null,null,null,null,null,null,null,null,null,null,null,null,null,null,null,null,null,null,null,null,null,null,null,null,null,null,null,null,null,null,null,null,null,null,null,null,null,null,null,null,null,null,null,null,null,null,null,null,null,null,null,null,null,null,null,null,null,null,null,null,null,null,null,null,null,null,null,null,null,null,null,null,null,null,null,null,null,null,"26400",null,null,null,null,null,null,null,"х",null,null,null,null,null,null,null,null,null,{"$f":"DF12+DF38+DF45","v":10029340.518974002},null,null,null,null,null,null,null,null,null,null,null,null,{"$f":"DS12+DS38+DS45","v":8399500.8399999999},null,null,null,null,null,null,null,null,null,null,null,null,{"$f":"EF12+EF38+EF45","v":8399500.8399999999}]
["1.4.1",null,null,null,null,null,null,null,"в том числе:\nза счет субсидий, предоставляемых на финансовое обеспечение выполнения муниципального задания",null,null,null,null,null,null,null,null,null,null,null,null,null,null,null,null,null,null,null,null,null,null,null,null,null,null,null,null,null,null,null,null,null,null,null,null,null,null,null,null,null,null,null,null,null,null,null,null,null,null,null,null,null,null,null,null,null,null,null,null,null,null,null,null,null,null,null,null,null,null,null,null,null,null,null,null,null,null,null,null,null,null,"26410",null,null,null,null,null,null,null,"х",null,null,null,null,null,null,null,null,null,{"$f":"'раздел 1'!BY92","v":6226345.0789740011},null,null,null,null,null,null,null,null,null,null,null,null,{"$f":"'раздел 1'!CD92","v":4991691.57},null,null,null,null,null,null,null,null,null,null,null,null,{"$f":"'раздел 1'!CI92","v":4991691.57}]
["1.4.1.1",null,null,null,null,null,null,null,"в том числе:\nв соответствии с Федеральным законом № 44-ФЗ",null,null,null,null,null,null,null,null,null,null,null,null,null,null,null,null,null,null,null,null,null,null,null,null,null,null,null,null,null,null,null,null,null,null,null,null,null,null,null,null,null,null,null,null,null,null,null,null,null,null,null,null,null,null,null,null,null,null,null,null,null,null,null,null,null,null,null,null,null,null,null,null,null,null,null,null,null,null,null,null,null,null,"26411",null,null,null,null,null,null,null,"х"]
["1.4.1.2",null,null,null,null,null,null,null,"в соответствии с Федеральным законом № 223-ФЗ 14",null,null,null,null,null,null,null,null,null,null,null,null,null,null,null,null,null,null,null,null,null,null,null,null,null,null,null,null,null,null,null,null,null,null,null,null,null,null,null,null,null,null,null,null,null,null,null,null,null,null,null,null,null,null,null,null,null,null,null,null,null,null,null,null,null,null,null,null,null,null,null,null,null,null,null,null,null,null,null,null,null,null,"26412",null,null,null,null,null,null,null,"х",null,null,null,null,null,null,null,null,null,{"$f":"DF12","v":6226345.0789740011},null,null,null,null,null,null,null,null,null,null,null,null,{"$f":"DS12","v":4991691.57},null,null,null,null,null,null,null,null,null,null,null,null,{"$f":"EF12","v":4991691.57}]
[null,null,null,null,null,null,null,null,"услуги связи",null,null,null,null,null,null,null,null,null,null,null,null,null,null,null,null,null,null,null,null,null,null,null,null,null,null,null,null,null,null,null,null,null,null,null,null,null,null,null,null,null,null,null,null,null,null,null,null,null,null,null,null,null,null,null,null,null,null,null,null,null,null,null,null,null,null,null,null,null,null,null,null,null,null,null,null,null,null,null,null,null,null,null,null,null,null,null,null,null,null,"х",null,null,null,null,null,null,null,null,null,{"$f":"'раздел 1'!BX93","v":164065.272},null,null,null,null,null,null,null,null,null,null,null,null,{"$f":"'раздел 1'!CC93","v":164065.27000000002},null,null,null,null,null,null,null,null,null,null,null,null,{"$f":"'раздел 1'!CH93","v":164065.27000000002}]
[null,null,null,null,null,null,null,null,"услуги связи",null,null,null,null,null,null,null,null,null,null,null,null,null,null,null,null,null,null,null,null,null,null,null,null,null,null,null,null,null,null,null,null,null,null,null,null,null,null,null,null,null,null,null,null,null,null,null,null,null,null,null,null,null,null,null,null,null,null,null,null,null,null,null,null,null,null,null,null,null,null,null,null,null,null,null,null,null,null,null,null,null,null,null,null,null,null,null,null,null,null,"х",null,null,null,null,null,null,null,null,null,{"$f":"'раздел 1'!BX94","v":63272.167999999998},null,null,null,null,null,null,null,null,null,null,null,null,{"$f":"'раздел 1'!CC94","v":63272.17},null,null,null,null,null,null,null,null,null,null,null,null,{"$f":"'раздел 1'!CH94","v":63272.17}]
[null,null,null,null,null,null,null,null,"транспортные услуги",null,null,null,null,null,null,null,null,null,null,null,null,null,null,null,null,null,null,null,null,null,null,null,null,null,null,null,null,null,null,null,null,null,null,null,null,null,null,null,null,null,null,null,null,null,null,null,null,null,null,null,null,null,null,null,null,null,null,null,null,null,null,null,null,null,null,null,null,null,null,null,null,null,null,null,null,null,null,null,null,null,null,null,null,null,null,null,null,null,null,"х",null,null,null,null,null,null,null,null,null,{"$f":"'раздел 1'!BX95","v":248754},null,null,null,null,null,null,null,null,null,null,null,null,{"$f":"'раздел 1'!CC95","v":255754},null,null,null,null,null,null,null,null,null,null,null,null,{"$f":"'раздел 1'!CH95","v":255754}]
[null,null,null,null,null,null,null,null,"транспортные услуги",null,null,null,null,null,null,null,null,null,null,null,null,null,null,null,null,null,null,null,null,null,null,null,null,null,null,null,null,null,null,null,null,null,null,null,null,null,null,null,null,null,null,null,null,null,null,null,null,null,null,null,null,null,null,null,null,null,null,null,null,null,null,null,null,null,null,null,null,null,null,null,null,null,null,null,null,null,null,null,null,null,null,null,null,null,null,null,null,null,null,"х",null,null,null,null,null,null,null,null,null,{"$f":"'раздел 1'!BX96","v":66650},null,null,null,null,null,null,null,null,null,null,null,null,{"$f":"'раздел 1'!CC96","v":66650},null,null,null,null,null,null,null,null,null,null,null,null,{"$f":"'раздел 1'!CH96","v":66650}]
[null,null,null,null,null,null,null,null,"коммунальные услуги",null,null,null,null,null,null,null,null,null,null,null,null,null,null,null,null,null,null,null,null,null,null,null,null,null,null,null,null,null,null,null,null,null,null,null,null,null,null,null,null,null,null,null,null,null,null,null,null,null,null,null,null,null,null,null,null,null,null,null,null,null,null,null,null,null,null,null,null,null,null,null,null,null,null,null,null,null,null,null,null,null,null,null,null,null,null,null,null,null,null,"х",null,null,null,null,null,null,null,null,null,{"$f":"'раздел 1'!BX97","v":874121.82458400005},null,null,null,null,null,null,null,null,null,null,null,null,{"$f":"'раздел 1'!CC97","v":907270.00999999989},null,null,null,null,null,null,null,null,null,null,null,null,{"$f":"'раздел 1'!CH97","v":907270.00999999989}]
[null,null,null,null,null,null,null,null,"коммунальные услуги",null,null,null,null,null,null,null,null,null,null,null,null,null,null,null,null,null,null,null,null,null,null,null,null,null,null,null,null,null,null,null,null,null,null,null,null,null,null,null,null,null,null,null,null,null,null,null,null,null,null,null,null,null,null,null,null,null,null,null,null,null,null,null,null,null,null,null,null,null,null,null,null,null,null,null,null,null,null,null,null,null,null,null,null,null,null,null,null,null,null,"х",null,null,null,null,null,null,null,null,null,{"$f":"'раздел 1'!BX98","v":281071.09239000001},null,null,null,null,null,null,null,null,null,null,null,null,{"$f":"'раздел 1'!CC98","v":281071.09000000003},null,null,null,null,null,null,null,null,null,null,null,null,{"$f":"'раздел 1'!CH98","v":281071.09000000003}]
[null,null,null,null,null,null,null,null,"услуги по содержанию имущества",null,null,null,null,null,null,null,null,null,null,null,null,null,null,null,null,null,null,null,null,null,null,null,null,null,null,null,null,null,null,null,null,null,null,null,null,null,null,null,null,null,null,null,null,null,null,null,null,null,null,null,null,null,null,null,null,null,null,null,null,null,null,null,null,null,null,null,null,null,null,null,null,null,null,null,null,null,null,null,null,null,null,null,null,null,null,null,null,null,null,"х",null,null,null,null,null,null,null,null,null,{"$f":"'раздел 1'!BX99","v":2803279.53},null,null,null,null,null,null,null,null,null,null,null,null,{"$f":"'раздел 1'!CC99","v":852731.73247599998},null,null,null,null,null,null,null,null,null,null,null,null,{"$f":"'раздел 1'!CH99","v":852731.73247599998}]
[null,null,null,null,null,null,null,null,"услуги по содержанию имущества",null,null,null,null,null,null,null,null,null,null,null,null,null,null,null,null,null,null,null,null,null,null,null,null,null,null,null,null,null,null,null,null,null,null,null,null,null,null,null,null,null,null,null,null,null,null,null,null,null,null,null,null,null,null,null,null,null,null,null,null,null,null,null,null,null,null,null,null,null,null,null,null,null,null,null,null,null,null,null,null,null,null,null,null,null,null,null,null,null,null,"х",null,null,null,null,null,null,null,null,null,{"$f":"'раздел 1'!BX100","v":163047.47200000001},null,null,null,null,null,null,null,null,null,null,null,null,{"$f":"'раздел 1'!CC100","v":336653.87752400001},null,null,null,null,null,null,null,null,null,null,null,null,{"$f":"'раздел 1'!CH100","v":336653.87752400001}]
[null,null,null,null,null,null,null,null,"прочие работы, услуги",null,null,null,null,null,null,null,null,null,null,null,null,null,null,null,null,null,null,null,null,null,null,null,null,null,null,null,null,null,null,null,null,null,null,null,null,null,null,null,null,null,null,null,null,null,null,null,null,null,null,null,null,null,null,null,null,null,null,null,null,null,null,null,null,null,null,null,null,null,null,null,null,null,null,null,null,null,null,null,null,null,null,null,null,null,null,null,null,null,null,"х",null,null,null,null,null,null,null,null,null,{"$f":"'раздел 1'!BX101","v":1429533.54},null,null,null,null,null,null,null,null,null,null,null,null,{"$f":"'раздел 1'!CC101","v":1573344.02},null,null,null,null,null,null,null,null,null,null,null,null,{"$f":"'раздел 1'!CH101","v":1573344.02}]
[null,null,null,null,null,null,null,null,"прочие работы, услуги",null,null,null,null,null,null,null,null,null,null,null,null,null,null,null,null,null,null,null,null,null,null,null,null,null,null,null,null,null,null,null,null,null,null,null,null,null,null,null,null,null,null,null,null,null,null,null,null,null,null,null,null,null,null,null,null,null,null,null,null,null,null,null,null,null,null,null,null,null,null,null,null,null,null,null,null,null,null,null,null,null,null,null,null,null,null,null,null,null,null,"х",null,null,null,null,null,null,null,null,null,{"$f":"'раздел 1'!BX102","v":1142646.79},null,null,null,null,null,null,null,null,null,null,null,null,{"$f":"'раздел 1'!CC102","v":822646.79},null,null,null,null,null,null,null,null,null,null,null,null,{"$f":"'раздел 1'!CH102","v":822646.79}]
[null,null,null,null,null,null,null,null,"страхование",null,null,null,null,null,null,null,null,null,null,null,null,null,null,null,null,null,null,null,null,null,null,null,null,null,null,null,null,null,null,null,null,null,null,null,null,null,null,null,null,null,null,null,null,null,null,null,null,null,null,null,null,null,null,null,null,null,null,null,null,null,null,null,null,null,null,null,null,null,null,null,null,null,null,null,null,null,null,null,null,null,null,null,null,null,null,null,null,null,null,"х",null,null,null,null,null,null,null,null,null,{"$f":"'раздел 1'!BX103","v":0},null,null,null,null,null,null,null,null,null,null,null,null,{"$f":"'раздел 1'!CC103","v":0},null,null,null,null,null,null,null,null,null,null,null,null,{"$f":"'раздел 1'!CH103","v":0}]
[null,null,null,null,null,null,null,null,"увеличение стоимости основных средств",null,null,null,null,null,null,null,null,null,null,null,null,null,null,null,null,null,null,null,null,null,null,null,null,null,null,null,null,null,null,null,null,null,null,null,null,null,null,null,null,null,null,null,null,null,null,null,null,null,null,null,null,null,null,null,null,null,null,null,null,null,null,null,null,null,null,null,null,null,null,null,null,null,null,null,null,null,null,null,null,null,null,null,null,null,null,null,null,null,null,"х",null,null,null,null,null,null,null,null,null,{"$f":"'раздел 1'!BX104","v":722924.88},null,null,null,null,null,null,null,null,null,null,null,null,{"$f":"'раздел 1'!CC104","v":1014571.12},null,null,null,null,null,null,null,null,null,null,null,null,{"$f":"'раздел 1'!CH104","v":1014571.12}]
[null,null,null,null,null,null,null,null,"увеличение стоимости лекарственных препаратов и материалов, применяемых в медицинских целях",null,null,null,null,null,null,null,null,null,null,null,null,null,null,null,null,null,null,null,null,null,null,null,null,null,null,null,null,null,null,null,null,null,null,null,null,null,null,null,null,null,null,null,null,null,null,null,null,null,null,null,null,null,null,null,null,null,null,null,null,null,null,null,null,null,null,null,null,null,null,null,null,null,null,null,null,null,null,null,null,null,null,null,null,null,null,null,null,null,null,"х",null,null,null,null,null,null,null,null,null,{"$f":"'раздел 1'!BX105","v":613.25},null,null,null,null,null,null,null,null,null,null,null,null,{"$f":"'раздел 1'!CC105","v":613.25},null,null,null,null,null,null,null,null,null,null,null,null,{"$f":"'раздел 1'!CH105","v":613.25}]
[null,null,null,null,null,null,null,null,"увеличение стоимости лекарственных препаратов и материалов, применяемых в медицинских целях",null,null,null,null,null,null,null,null,null,null,null,null,null,null,null,null,null,null,null,null,null,null,null,null,null,null,null,null,null,null,null,null,null,null,null,null,null,null,null,null,null,null,null,null,null,null,null,null,null,null,null,null,null,null,null,null,null,null,null,null,null,null,null,null,null,null,null,null,null,null,null,null,null,null,null,null,null,null,null,null,null,null,null,null,null,null,null,null,null,null,"х",null,null,null,null,null,null,null,null,null,{"$f":"'раздел 1'!BX106","v":299.87},null,null,null,null,null,null,null,null,null,null,null,null,{"$f":"'раздел 1'!CC106","v":299.87},null,null,null,null,null,null,null,null,null,null,null,null,{"$f":"'раздел 1'!CH106","v":299.87}]
[null,null,null,null,null,null,null,null,"увеличение стоимости продуктов питания",null,null,null,null,null,null,null,null,null,null,null,null,null,null,null,null,null,null,null,null,null,null,null,null,null,null,null,null,null,null,null,null,null,null,null,null,null,null,null,null,null,null,null,null,null,null,null,null,null,null,null,null,null,null,null,null,null,null,null,null,null,null,null,null,null,null,null,null,null,null,null,null,null,null,null,null,null,null,null,null,null,null,null,null,null,null,null,null,null,null,"х",null,null,null,null,null,null,null,null,null,{"$f":"'раздел 1'!BX107","v":1094420},null,null,null,null,null,null,null,null,null,null,null,null,{"$f":"'раздел 1'!CC107","v":1094420},null,null,null,null,null,null,null,null,null,null,null,null,{"$f":"'раздел 1'!CH107","v":1094420}]
[null,null,null,null,null,null,null,null,"увеличение стоимости продуктов питания",null,null,null,null,null,null,null,null,null,null,null,null,null,null,null,null,null,null,null,null,null,null,null,null,null,null,null,null,null,null,null,null,null,null,null,null,null,null,null,null,null,null,null,null,null,null,null,null,null,null,null,null,null,null,null,null,null,null,null,null,null,null,null,null,null,null,null,null,null,null,null,null,null,null,null,null,null,null,null,null,null,null,null,null,null,null,null,null,null,null,"х",null,null,null,null,null,null,null,null,null,{"$f":"'раздел 1'!BX108","v":103693.4},null,null,null,null,null,null,null,null,null,null,null,null,{"$f":"'раздел 1'!CC108","v":103693.4},null,null,null,null,null,null,null,null,null,null,null,null,{"$f":"'раздел 1'!CH108","v":103693.4}]
[null,null,null,null,null,null,null,null,"увеличение стоимости мягкого инвентаря",null,null,null,null,null,null,null,null,null,null,null,null,null,null,null,null,null,null,null,null,null,null,null,null,null,null,null,null,null,null,null,null,null,null,null,null,null,null,null,null,null,null,null,null,null,null,null,null,null,null,null,null,null,null,null,null,null,null,null,null,null,null,null,null,null,null,null,null,null,null,null,null,null,null,null,null,null,null,null,null,null,null,null,null,null,null,null,null,null,null,"х",null,null,null,null,null,null,null,null,null,{"$f":"'раздел 1'!BX109","v":18345.16},null,null,null,null,null,null,null,null,null,null,null,null,{"$f":"'раздел 1'!CC109","v":18345.16},null,null,null,null,null,null,null,null,null,null,null,null,{"$f":"'раздел 1'!CH109","v":18345.16}]
[null,null,null,null,null,null,null,null,"увеличение стоимости мягкого инвентаря",null,null,null,null,null,null,null,null,null,null,null,null,null,null,null,null,null,null,null,null,null,null,null,null,null,null,null,null,null,null,null,null,null,null,null,null,null,null,null,null,null,null,null,null,null,null,null,null,null,null,null,null,null,null,null,null,null,null,null,null,null,null,null,null,null,null,null,null,null,null,null,null,null,null,null,null,null,null,null,null,null,null,null,null,null,null,null,null,null,null,"х",null,null,null,null,null,null,null,null,null,{"$f":"'раздел 1'!BX110","v":8970.44},null,null,null,null,null,null,null,null,null,null,null,null,{"$f":"'раздел 1'!CC110","v":8970.44},null,null,null,null,null,null,null,null,null,null,null,null,{"$f":"'раздел 1'!CH110","v":8970.44}]
[null,null,null,null,null,null,null,null,"увеличение стоимости прочих оборотных запасов (материалов)",null,null,null,null,null,null,null,null,null,null,null,null,null,null,null,null,null,null,null,null,null,null,null,null,null,null,null,null,null,null,null,null,null,null,null,null,null,null,null,null,null,null,null,null,null,null,null,null,null,null,null,null,null,null,null,null,null,null,null,null,null,null,null,null,null,null,null,null,null,null,null,null,null,null,null,null,null,null,null,null,null,null,null,null,null,null,null,null,null,null,"х",null,null,null,null,null,null,null,null,null,{"$f":"'раздел 1'!BX111","v":423134.02999999997},null,null,null,null,null,null,null,null,null,null,null,null,{"$f":"'раздел 1'!CC111","v":385790.7},null,null,null,null,null,null,null,null,null,null,null,null,{"$f":"'раздел 1'!CH111","v":385790.7}]
[null,null,null,null,null,null,null,null,"увеличение стоимости прочих оборотных запасов (материалов)",null,null,null,null,null,null,null,null,null,null,null,null,null,null,null,null,null,null,null,null,null,null,null,null,null,null,null,null,null,null,null,null,null,null,null,null,null,null,null,null,null,null,null,null,null,null,null,null,null,null,null,null,null,null,null,null,null,null,null,null,null,null,null,null,null,null,null,null,null,null,null,null,null,null,null,null,null,null,null,null,null,null,null,null,null,null,null,null,null,null,"х",null,null,null,null,null,null,null,null,null,{"$f":"'раздел 1'!BX112","v":141537.17000000001},null,null,null,null,null,null,null,null,null,null,null,null,{"$f":"'раздел 1'!CC112","v":141877.29999999999},null,null,null,null,null,null,null,null,null,null,null,null,{"$f":"'раздел 1'!CH112","v":141877.29999999999}]
[null,null,null,null,null,null,null,null,"Увеличение стоимости материальных запасов для целей капитальных вложений",null,null,null,null,null,null,null,null,null,null,null,null,null,null,null,null,null,null,null,null,null,null,null,null,null,null,null,null,null,null,null,null,null,null,null,null,null,null,null,null,null,null,null,null,null,null,null,null,null,null,null,null,null,null,null,null,null,null,null,null,null,null,null,null,null,null,null,null,null,null,null,null,null,null,null,null,null,null,null,null,null,null,null,null,null,null,null,null,null,null,"х",null,null,null,null,null,null,null,null,null,{"$f":"'раздел 1'!BX113","v":21960.639999999999},null,null,null,null,null,null,null,null,null,null,null,null,{"$f":"DF35","v":21960.639999999999},null,null,null,null,null,null,null,null,null,null,null,null,{"$f":"DS35","v":21960.639999999999}]
[null,null,null,null,null,null,null,null,"увеличение стоимости прочих материальных запасов однократного применения",null,null,null,null,null,null,null,null,null,null,null,null,null,null,null,null,null,null,null,null,null,null,null,null,null,null,null,null,null,null,null,null,null,null,null,null,null,null,null,null,null,null,null,null,null,null,null,null,null,null,null,null,null,null,null,null,null,null,null,null,null,null,null,null,null,null,null,null,null,null,null,null,null,null,null,null,null,null,null,null,null,null,null,null,null,null,null,null,null,null,"х",null,null,null,null,null,null,null,null,null,{"$f":"'раздел 1'!BX115","v":191400},null,null,null,null,null,null,null,null,null,null,null,null,{"$f":"'раздел 1'!CC115","v":220500},null,null,null,null,null,null,null,null,null,null,null,null,{"$f":"'раздел 1'!CH115","v":220500}]
[null,null,null,null,null,null,null,null,"увеличение стоимости прочих материальных запасов однократного применения",null,null,null,null,null,null,null,null,null,null,null,null,null,null,null,null,null,null,null,null,null,null,null,null,null,null,null,null,null,null,null,null,null,null,null,null,null,null,null,null,null,null,null,null,null,null,null,null,null,null,null,null,null,null,null,null,null,null,null,null,null,null,null,null,null,null,null,null,null,null,null,null,null,null,null,null,null,null,null,null,null,null,null,null,null,null,null,null,null,null,"х",null,null,null,null,null,null,null,null,null,{"$f":"'раздел 1'!BX116","v":65000},null,null,null,null,null,null,null,null,null,null,null,null,{"$f":"'раздел 1'!CC116","v":65000},null,null,null,null,null,null,null,null,null,null,null,null,{"$f":"'раздел 1'!CH116","v":65000}]
["1.4.2",null,null,null,null,null,null,null,"за счет субсидий, предоставляемых в соответствии с абзацем вторым пункта 1 статьи 78.1 Бюджетного кодекса Российской Федерации",null,null,null,null,null,null,null,null,null,null,null,null,null,null,null,null,null,null,null,null,null,null,null,null,null,null,null,null,null,null,null,null,null,null,null,null,null,null,null,null,null,null,null,null,null,null,null,null,null,null,null,null,null,null,null,null,null,null,null,null,null,null,null,null,null,null,null,null,null,null,null,null,null,null,null,null,null,null,null,null,null,null,"26420",null,null,null,null,null,null,null,"х",null,null,null,null,null,null,null,null,null,{"$f":"DF40","v":1383036.4},null,null,null,null,null,null,null,null,null,null,null,null,{"$f":"DS40","v":1052450.24},null,null,null,null,null,null,null,null,null,null,null,null,{"$f":"EF40","v":1052450.24}]
["1.4.2.1",null,null,null,null,null,null,null,"в том числе:\nв соответствии с Федеральным законом № 44-ФЗ",null,null,null,null,null,null,null,null,null,null,null,null,null,null,null,null,null,null,null,null,null,null,null,null,null,null,null,null,null,null,null,null,null,null,null,null,null,null,null,null,null,null,null,null,null,null,null,null,null,null,null,null,null,null,null,null,null,null,null,null,null,null,null,null,null,null,null,null,null,null,null,null,null,null,null,null,null,null,null,null,null,null,"26421",null,null,null,null,null,null,null,"х"]
["1.4.2.2",null,null,null,null,null,null,null,"в соответствии с Федеральным законом № 223-ФЗ 14",null,null,null,null,null,null,null,null,null,null,null,null,null,null,null,null,null,null,null,null,null,null,null,null,null,null,null,null,null,null,null,null,null,null,null,null,null,null,null,null,null,null,null,null,null,null,null,null,null,null,null,null,null,null,null,null,null,null,null,null,null,null,null,null,null,null,null,null,null,null,null,null,null,null,null,null,null,null,null,null,null,null,"26422",null,null,null,null,null,null,null,"х",null,null,null,null,null,null,null,null,null,{"$f":"'раздел 1'!BZ92","v":1383036.4},null,null,null,null,null,null,null,null,null,null,null,null,{"$f":"'раздел 1'!CE92","v":1052450.24},null,null,null,null,null,null,null,null,null,null,null,null,{"$f":"'раздел 1'!CJ92","v":1052450.24}]
["1.4.3",null,null,null,null,null,null,null,"за счет субсидий, предоставляемых на осуществление капитальных вложений 15",null,null,null,null,null,null,null,null,null,null,null,null,null,null,null,null,null,null,null,null,null,null,null,null,null,null,null,null,null,null,null,null,null,null,null,null,null,null,null,null,null,null,null,null,null,null,null,null,null,null,null,null,null,null,null,null,null,null,null,null,null,null,null,null,null,null,null,null,null,null,null,null,null,null,null,null,null,null,null,null,null,null,"26430",null,null,null,null,null,null,null,"х"]
["1.4.4",null,null,null,null,null,null,null,"за счет средств обязательного медицинского страхования",null,null,null,null,null,null,null,null,null,null,null,null,null,null,null,null,null,null,null,null,null,null,null,null,null,null,null,null,null,null,null,null,null,null,null,null,null,null,null,null,null,null,null,null,null,null,null,null,null,null,null,null,null,null,null,null,null,null,null,null,null,null,null,null,null,null,null,null,null,null,null,null,null,null,null,null,null,null,null,null,null,null,"26440",null,null,null,null,null,null,null,"х"]
["1.4.4.1",null,null,null,null,null,null,null,"в том числе:\nв соответствии с Федеральным законом № 44-ФЗ",null,null,null,null,null,null,null,null,null,null,null,null,null,null,null,null,null,null,null,null,null,null,null,null,null,null,null,null,null,null,null,null,null,null,null,null,null,null,null,null,null,null,null,null,null,null,null,null,null,null,null,null,null,null,null,null,null,null,null,null,null,null,null,null,null,null,null,null,null,null,null,null,null,null,null,null,null,null,null,null,null,null,"26441",null,null,null,null,null,null,null,"х"]
["1.4.4.2",null,null,null,null,null,null,null,"в соответствии с Федеральным законом № 223-ФЗ 14",null,null,null,null,null,null,null,null,null,null,null,null,null,null,null,null,null,null,null,null,null,null,null,null,null,null,null,null,null,null,null,null,null,null,null,null,null,null,null,null,null,null,null,null,null,null,null,null,null,null,null,null,null,null,null,null,null,null,null,null,null,null,null,null,null,null,null,null,null,null,null,null,null,null,null,null,null,null,null,null,null,null,"26442",null,null,null,null,null,null,null,"х"]
["1.4.5",null,null,null,null,null,null,null,"за счет прочих источников финансового обеспечения",null,null,null,null,null,null,null,null,null,null,null,null,null,null,null,null,null,null,null,null,null,null,null,null,null,null,null,null,null,null,null,null,null,null,null,null,null,null,null,null,null,null,null,null,null,null,null,null,null,null,null,null,null,null,null,null,null,null,null,null,null,null,null,null,null,null,null,null,null,null,null,null,null,null,null,null,null,null,null,null,null,null,"26450",null,null,null,null,null,null,null,"х",null,null,null,null,null,null,null,null,null,{"$f":"DF47","v":2419959.04},null,null,null,null,null,null,null,null,null,null,null,null,{"$f":"DS47","v":2355359.0300000003},null,null,null,null,null,null,null,null,null,null,null,null,{"$f":"EF47","v":2355359.0300000003}]
["1.4.5.1",null,null,null,null,null,null,null,"в том числе:\nв соответствии с Федеральным законом № 44-ФЗ",null,null,null,null,null,null,null,null,null,null,null,null,null,null,null,null,null,null,null,null,null,null,null,null,null,null,null,null,null,null,null,null,null,null,null,null,null,null,null,null,null,null,null,null,null,null,null,null,null,null,null,null,null,null,null,null,null,null,null,null,null,null,null,null,null,null,null,null,null,null,null,null,null,null,null,null,null,null,null,null,null,null,"26451",null,null,null,null,null,null,null,"х"]
["1.4.5.2",null,null,null,null,null,null,null,"в соответствии с Федеральным законом № 223-ФЗ",null,null,null,null,null,null,null,null,null,null,null,null,null,null,null,null,null,null,null,null,null,null,null,null,null,null,null,null,null,null,null,null,null,null,null,null,null,null,null,null,null,null,null,null,null,null,null,null,null,null,null,null,null,null,null,null,null,null,null,null,null,null,null,null,null,null,null,null,null,null,null,null,null,null,null,null,null,null,null,null,null,null,"26452",null,null,null,null,null,null,null,"х",null,null,null,null,null,null,null,null,null,{"$f":"'раздел 1'!CB92","v":2419959.04},null,null,null,null,null,null,null,null,null,null,null,null,{"$f":"'раздел 1'!CG92","v":2355359.0300000003},null,null,null,null,null,null,null,null,null,null,null,null,{"$f":"'раздел 1'!CL92","v":2355359.0300000003}]
["2",null,null,null,null,null,null,null,"Итого по контрактам, планируемым к заключению в соответствующем финансовом году в соответствии с Федеральным законом № 44-ФЗ, по соответствующему году закупки 16",null,null,null,null,null,null,null,null,null,null,null,null,null,null,null,null,null,null,null,null,null,null,null,null,null,null,null,null,null,null,null,null,null,null,null,null,null,null,null,null,null,null,null,null,null,null,null,null,null,null,null,null,null,null,null,null,null,null,null,null,null,null,null,null,null,null,null,null,null,null,null,null,null,null,null,null,null,null,null,null,null,null,"26500",null,null,null,null,null,null,null,"х"]
[null,null,null,null,null,null,null,null,"в том числе по году начала закупки:",null,null,null,null,null,null,null,null,null,null,null,null,null,null,null,null,null,null,null,null,null,null,null,null,null,null,null,null,null,null,null,null,null,null,null,null,null,null,null,null,null,null,null,null,null,null,null,null,null,null,null,null,null,null,null,null,null,null,null,null,null,null,null,null,null,null,null,null,null,null,null,null,null,null,null,null,null,null,null,null,null,null,"26510"]
[]
["3",null,null,null,null,null,null,null,"Итого по договорам, планируемым к заключению в соответствующем финансовом году в соответствии с Федеральным законом № 223-ФЗ, по соответствующему году закупки",null,null,null,null,null,null,null,null,null,null,null,null,null,null,null,null,null,null,null,null,null,null,null,null,null,null,null,null,null,null,null,null,null,null,null,null,null,null,null,null,null,null,null,null,null,null,null,null,null,null,null,null,null,null,null,null,null,null,null,null,null,null,null,null,null,null,null,null,null,null,null,null,null,null,null,null,null,null,null,null,null,null,"26600",null,null,null,null,null,null,null,"х"]
[null,null,null,null,null,null,null,null,"в том числе по году начала закупки:",null,null,null,null,null,null,null,null,null,null,null,null,null,null,null,null,null,null,null,null,null,null,null,null,null,null,null,null,null,null,null,null,null,null,null,null,null,null,null,null,null,null,null,null,null,null,null,null,null,null,null,null,null,null,null,null,null,null,null,null,null,null,null,null,null,null,null,null,null,null,null,null,null,null,null,null,null,null,null,null,null,null,"26610"]
[]
[]
[null,null,null,null,null,null,null,null,"Руководитель учреждения"]
[null,null,null,null,null,null,null,null,"(уполномоченное лицо учреждения)",null,null,null,null,null,null,null,null,null,null,null,null,null,null,null,null,null,null,null,null,null,null,null,null,null,null,null,null,null,null,null,null,null,"Заместитель директора",null,null,null,null,null,null,null,null,null,null,null,null,null,null,null,null,null,null,null,null,null,null,null,null,null,null,null,null,null,null,null,null,null,"Гырля М.С.."]
[null,null,null,null,null,null,null,null,null,null,null,null,null,null,null,null,null,null,null,null,null,null,null,null,null,null,null,null,null,null,null,null,null,null,null,null,null,null,null,null,null,null,"(должность)",null,null,null,null,null,null,null,null,null,null,null,null,null,null,null,null,null,null,null,"(подпись)",null,null,null,null,null,null,null,null,null,null,null,null,null,"(расшифровка подписи)"]
[]
[null,null,null,null,null,null,null,null,"Исполнитель",null,null,null,null,null,null,null,null,null,null,null,null,null,null,null,null,null,null,null,null,null,null,null,null,null,null,null,null,null,"Ведущий экономист",null,null,null,null,null,null,null,null,null,null,null,null,null,null,null,null,null,null,null,null,null,null,null,null,null,null,null,null,null,null,null,null,null,null,null,null,null,null,null,"Николаева Л.В."]
[null,null,null,null,null,null,null,null,null,null,null,null,null,null,null,null,null,null,null,null,null,null,null,null,null,null,null,null,null,null,null,null,null,null,null,null,null,null,"(должность)",null,null,null,null,null,null,null,null,null,null,null,null,null,null,null,null,null,null,null,"(фамилия, инициалы)",null,null,null,null,null,null,null,null,null,null,null,null,null,null,null,null,null,null,null,"(телефон)"]
[]
[null,null,null,null,null,null,null,null,"\"",null,null,null,null,"\"",null,null,null,null,null,null,null,null,null,null,null,null,null,null,null,null,null,20,null,null,null,null,null," г."]
[]
[]
["СОГЛАСОВАНО"]
[]
["(наименование должности уполномоченного лица Учредителя)"]
[]
[]
["(подпись)",null,null,null,null,null,null,null,null,null,null,null,null,null,null,null,null,null,null,null,null,null,null,null,null,null,null,null,null,null,null,null,null,"(расшифровка подписи)"]
[]
["\"",null,null,null,null,"\"",null,null,null,null,null,null,null,null,null,null,null,null,null,null,null,null,null,20,null,null,null,null,null," г."]
[]
[]
["_____10_В Разделе 2 \"Сведения по выплатам на закупку товаров, работ, услуг\" Плана детализируются показатели выплат по расходам на закупку товаров, работ, услуг, отраженные в строке 2600 Раздела 1 \"Поступления и выплаты\" Плана."]
["_____11_Плановые показатели выплат на закупку товаров, работ, услуг по строке 26000 Раздела 2 \"Сведения по выплатам на закупку товаров, работ, услуг\" Плана распределяются на выплаты по контрактам (договорам), заключенным (планируемым к заключению) в соответствии с гражданским законодательством Российской Федерации (строки 26100 и 26200), а также по контрактам (договорам), заключаемым в соответствии с требованиями законодательства Российской Федерации и иных нормативных правовых актов о контрактной системе в сфере закупок товаров, работ, услуг для муниципальных нужд, с детализацией указанных выплат по контрактам (договорам), заключенным до начала текущего финансового года (строка 26300) и планируемым к заключению в соответствующем финансовом году (строка 26400) и должны соответствовать показателям соответствующих граф по строке 2600 Раздела 1 \"Поступления и выплаты\" Плана."]
["_____12_Указывается сумма договоров (контрактов) о закупках товаров, работ, услуг, заключенных без учета требований Федерального закона № 44-ФЗ и Федерального закона № 223-ФЗ, в случаях, предусмотренных указанными федеральными законами."]
["_____13_Указывается сумма закупок товаров, работ, услуг, осуществляемых в соответствии с Федеральным законом № 44-ФЗ и Федеральным законом № 223-ФЗ."]
["_____14_Государственным (муниципальным) бюджетным учреждением показатель не формируется."]
["_____15_Указывается сумма закупок товаров, работ, услуг, осуществляемых в соответствии с Федеральным законом № 44-ФЗ."]
["_____16_Плановые показатели выплат на закупку товаров, работ, услуг по строке 26500 муниципального бюджетного учреждения должен быть не менее суммы показателей строк 26410, 26420, 26430, 26440 по соответствующей графе, муниципального автономного учреждения - не менее показателя строки 26430 по соответствующей графе."]